Workbook

Sheet AUX (hidden)
A1: NUMBER | B1: COLOR
A2: 0 | B2: 0
A3: 1 | B3: RED
A4: 2 | B4: BLACK
A5: 3 | B5: RED
A6: 4 | B6: BLACK
A7: 5 | B7: RED
A8: 6 | B8: BLACK
A9: 7 | B9: RED
A10: 8 | B10: BLACK
A11: 9 | B11: RED
A12: 10 | B12: BLACK
A13: 11 | B13: RED
A14: 12 | B14: BLACK
A15: 13 | B15: RED
A16: 14 | B16: BLACK
A17: 15 | B17: RED
A18: 16 | B18: BLACK
A19: 17 | B19: RED
A20: 18 | B20: BLACK
A21: 19 | B21: RED
A22: 20 | B22: BLACK
A23: 21 | B23: RED
A24: 22 | B24: BLACK
A25: 23 | B25: RED
A26: 24 | B26: BLACK
A27: 25 | B27: RED
A28: 26 | B28: BLACK
A29: 27 | B29: RED
A30: 28 | B30: BLACK
A31: 29 | B31: RED
A32: 30 | B32: BLACK
A33: 31 | B33: RED
A34: 32 | B34: BLACK
A35: 33 | B35: RED
A36: 34 | B36: BLACK
A37: 35 | B37: RED
A38: 36 | B38: BLACK

Sheet DASHBOARD B
D1: INITIAL BALANCE | E1: BET AFTER ITERATIONS | G1: STOP LOSS ROUND | H1: STOP PROFIT € | I1: MAX ITERATIONS | T1: 0 | U1: 1 | V1: 2 | W1: 3 | X1: 4 | Y1: 5 | Z1: 6 | AA1: 7 | AB1: 8 | AC1: 9 | AD1: 10 | AE1: 11 | AF1: 12 | AG1: 13 | AH1: 14 | AI1: 15 | AJ1: 16 | AK1: 17 | AL1: 18
F2: BET | K2: WIN | L2: € WIN | M2: LOSS | N2: € LOSS | O2: € BAL | T2: =COUNTIF($B:$B,T1) -> 8 | U2: 8 | V2: 6 | W2: 12 | X2: 14 | Y2: 8 | Z2: 5 | AA2: 8 | AB2: 6 | AC2: 12 | AD2: 15 | AE2: 7 | AF2: 8 | AG2: 11 | AH2: 7 | AI2: 2 | AJ2: 8 | AK2: 6 | AL2: 8
D3: 300 | E3: 1 | F3: 5 | G3: 1 | H3: 200 | I3: =E3+G3 -> 2 | K3: =COUNTIF(H:H,"SUCCESS") -> 68 | L3: =K3*F3 -> 340 | M3: =COUNTIFS(H:H,"FAIL",I:I,G4) -> 75 | N3: =G5*M3 -> 375 | O3: =L3-N3 -> -35 | U3: 19 | V3: 20 | W3: 21 | X3: 22 | Y3: 23 | Z3: 24 | AA3: 25 | AB3: 26 | AC3: 27 | AD3: 28 | AE3: 29 | AF3: 30 | AG3: 31 | AH3: 32 | AI3: 33 | AJ3: 34 | AK3: 35 | AL3: 36
G4: =F3*2^(G3-1) -> 5 | H4: CALC | I4: =MAX($E$7:$E$300) -> 9 | U4: =COUNTIF($B:$B,U3) -> 8 | V4: 6 | W4: 6 | X4: 6 | Y4: 6 | Z4: 8 | AA4: 8 | AB4: 8 | AC4: 10 | AD4: 2 | AE4: 3 | AF4: 7 | AG4: 8 | AH4: 9 | AI4: 11 | AJ4: 10 | AK4: 9 | AL4: 10
G5: =G4*2-F3 -> 5 | H5: LOSS
A6: AUX ROW | B6: RESULT | C6: COLOR | D6: SIM ZERO | E6: ITERATIONS | F6: BET | G6: BET SIGN | H6: RESULT | I6: BET AM | J6: WIN | K6: BALANCE | L6: STOPPER | M6: IT CONT | N6: IT ISOL | P6: ITER | Q6: TIMES | R6: ISOL TIM
A7: =ROW() -> 7 | B7: =RANDBETWEEN(0,36) -> 21 | C7: =_xlfn.XLOOKUP(B7,AUX!$A:$A,AUX!$B:$B,"",0,1) -> RED | D7: =IF(C7=0,INDEX($C:$C,MAX(_xlfn.XLOOKUP("BLACK",$C$7:C7,$A$7:A7,"",0,-1),_xlfn.XLOOKUP("RED",$C$7:C7,$A$7:A7,"",0,-1)),1),C7) -> RED | K7: =D3 -> 300 | M7: =E7*20 -> 0 | N7: =IF(E8<=E7,E7,"") ->  | P7: 0 | Q7: =COUNTIF($E$7:$E$300,P7) -> 0 | R7: =COUNTIF($N$7:$N$300,P7) -> 0
A8: =ROW() -> 8 | B8: =RANDBETWEEN(0,36) -> 24 | C8: =_xlfn.XLOOKUP(B8,AUX!$A:$A,AUX!$B:$B,"",0,1) -> BLACK | D8: =IF(C8=0,INDEX($C:$C,MAX(_xlfn.XLOOKUP("BLACK",$C$7:C8,$A$7:A8,"",0,-1),_xlfn.XLOOKUP("RED",$C$7:C8,$A$7:A8,"",0,-1)),1),C8) -> BLACK | E8: =IF(AND(COUNTIF($D$7:D8,"RED")>0,COUNTIF($D$7:D8,"BLACK")>0),A8-MIN(_xlfn.XLOOKUP("BLACK",$D$7:D8,$A$7:A8,"",0,-1),_xlfn.XLOOKUP("RED",$D$7:D8,$A$7:A8,"",0,-1)),A8-6) -> 1 | F8: =IF(AND(E7>=$E$3,L7=""),"BET","") ->  | G8: =IF(F8="BET",IF(D7="RED","BLACK",IF(D7="BLACK","RED","ERROR")),"") ->  | H8: =IF(F8="BET",IF(D8=G8,"SUCCESS","FAIL"),"") ->  | I8: =IF(F8="BET",IF(OR(I7>=$G$4,F7=""),$F$3,IF(AND(F7="BET",H7="FAIL"),I7*2,$F$3)),"") ->  | J8: =IF(F8="BET",IF(H8="SUCCESS",I8*2,0),"") ->  | K8: =IF(F8="BET",K7-I8+J8,K7) -> 300 | L8: =IF(OR(AND(H8="FAIL",I8=$G$4),AND(L7="STOP",E8>$E$3)),"STOP","") ->  | M8: =E8*50 -> 50 | N8: =IF(E9<=E8,E8,"") -> 1 | P8: 1 | Q8: =COUNTIF(E:E,P8) -> 145 | R8: =COUNTIF($N$7:$N$300,P8) -> 69
A9: =ROW() -> 9 | B9: 23 | C9: =_xlfn.XLOOKUP(B9,AUX!$A:$A,AUX!$B:$B,"",0,1) -> RED | D9: =IF(C9=0,INDEX($C:$C,MAX(_xlfn.XLOOKUP("BLACK",$C$7:C9,$A$7:A9,"",0,-1),_xlfn.XLOOKUP("RED",$C$7:C9,$A$7:A9,"",0,-1)),1),C9) -> RED | E9: =IF(AND(COUNTIF($D$7:D9,"RED")>0,COUNTIF($D$7:D9,"BLACK")>0),A9-MIN(_xlfn.XLOOKUP("BLACK",$D$7:D9,$A$7:A9,"",0,-1),_xlfn.XLOOKUP("RED",$D$7:D9,$A$7:A9,"",0,-1)),A9-6) -> 1 | F9: =IF(AND(E8>=$E$3,L8=""),"BET","") -> BET | G9: =IF(F9="BET",IF(D8="RED","BLACK",IF(D8="BLACK","RED","ERROR")),"") -> RED | H9: =IF(F9="BET",IF(D9=G9,"SUCCESS","FAIL"),"") -> SUCCESS | I9: =IF(F9="BET",IF(OR(I8>=$G$4,F8=""),$F$3,IF(AND(F8="BET",H8="FAIL"),I8*2,$F$3)),"") -> 5 | J9: 10 | K9: 305 | M9: =E9*50 -> 50 | N9: 1 | P9: 2 | Q9: =COUNTIF(E:E,P9) -> 75 | R9: 35
A10: =ROW() -> 10 | B10: 4 | C10: =_xlfn.XLOOKUP(B10,AUX!$A:$A,AUX!$B:$B,"",0,1) -> BLACK | D10: =IF(C10=0,INDEX($C:$C,MAX(_xlfn.XLOOKUP("BLACK",$C$7:C10,$A$7:A10,"",0,-1),_xlfn.XLOOKUP("RED",$C$7:C10,$A$7:A10,"",0,-1)),1),C10) -> BLACK | E10: =IF(AND(COUNTIF($D$7:D10,"RED")>0,COUNTIF($D$7:D10,"BLACK")>0),A10-MIN(_xlfn.XLOOKUP("BLACK",$D$7:D10,$A$7:A10,"",0,-1),_xlfn.XLOOKUP("RED",$D$7:D10,$A$7:A10,"",0,-1)),A10-6) -> 1 | F10: BET | G10: =IF(F10="BET",IF(D9="RED","BLACK",IF(D9="BLACK","RED","ERROR")),"") -> BLACK | H10: =IF(F10="BET",IF(D10=G10,"SUCCESS","FAIL"),"") -> SUCCESS | I10: =IF(F10="BET",IF(OR(I9>=$G$4,F9=""),$F$3,IF(AND(F9="BET",H9="FAIL"),I9*2,$F$3)),"") -> 5 | J10: =IF(F10="BET",IF(H10="SUCCESS",I10*2,0),"") -> 10 | K10: 310 | M10: 50 | N10: 1 | P10: 3 | Q10: =COUNTIF(E:E,P10) -> 40 | R10: 20
A11: =ROW() -> 11 | B11: 13 | C11: =_xlfn.XLOOKUP(B11,AUX!$A:$A,AUX!$B:$B,"",0,1) -> RED | D11: =IF(C11=0,INDEX($C:$C,MAX(_xlfn.XLOOKUP("BLACK",$C$7:C11,$A$7:A11,"",0,-1),_xlfn.XLOOKUP("RED",$C$7:C11,$A$7:A11,"",0,-1)),1),C11) -> RED | E11: =IF(AND(COUNTIF($D$7:D11,"RED")>0,COUNTIF($D$7:D11,"BLACK")>0),A11-MIN(_xlfn.XLOOKUP("BLACK",$D$7:D11,$A$7:A11,"",0,-1),_xlfn.XLOOKUP("RED",$D$7:D11,$A$7:A11,"",0,-1)),A11-6) -> 1 | F11: BET | G11: RED | H11: SUCCESS | I11: 5 | J11: 10 | K11: 315 | M11: 50 | P11: 4 | Q11: =COUNTIF(E:E,P11) -> 20 | R11: 11
A12: =ROW() -> 12 | B12: 3 | C12: =_xlfn.XLOOKUP(B12,AUX!$A:$A,AUX!$B:$B,"",0,1) -> RED | D12: =IF(C12=0,INDEX($C:$C,MAX(_xlfn.XLOOKUP("BLACK",$C$7:C12,$A$7:A12,"",0,-1),_xlfn.XLOOKUP("RED",$C$7:C12,$A$7:A12,"",0,-1)),1),C12) -> RED | E12: =IF(AND(COUNTIF($D$7:D12,"RED")>0,COUNTIF($D$7:D12,"BLACK")>0),A12-MIN(_xlfn.XLOOKUP("BLACK",$D$7:D12,$A$7:A12,"",0,-1),_xlfn.XLOOKUP("RED",$D$7:D12,$A$7:A12,"",0,-1)),A12-6) -> 2 | F12: BET | G12: BLACK | H12: FAIL | I12: 5 | J12: 0 | K12: 310 | L12: STOP | M12: 100 | P12: 5 | Q12: =COUNTIF(E:E,P12) -> 9 | R12: 7
A13: =ROW() -> 13 | B13: 3 | C13: =_xlfn.XLOOKUP(B13,AUX!$A:$A,AUX!$B:$B,"",0,1) -> RED | D13: =IF(C13=0,INDEX($C:$C,MAX(_xlfn.XLOOKUP("BLACK",$C$7:C13,$A$7:A13,"",0,-1),_xlfn.XLOOKUP("RED",$C$7:C13,$A$7:A13,"",0,-1)),1),C13) -> RED | E13: =IF(AND(COUNTIF($D$7:D13,"RED")>0,COUNTIF($D$7:D13,"BLACK")>0),A13-MIN(_xlfn.XLOOKUP("BLACK",$D$7:D13,$A$7:A13,"",0,-1),_xlfn.XLOOKUP("RED",$D$7:D13,$A$7:A13,"",0,-1)),A13-6) -> 3 | K13: 310 | L13: STOP | M13: 150 | N13: 3 | P13: 6 | Q13: =COUNTIF(E:E,P13) -> 2 | R13: 1
A14: =ROW() -> 14 | B14: 2 | C14: =_xlfn.XLOOKUP(B14,AUX!$A:$A,AUX!$B:$B,"",0,1) -> BLACK | D14: =IF(C14=0,INDEX($C:$C,MAX(_xlfn.XLOOKUP("BLACK",$C$7:C14,$A$7:A14,"",0,-1),_xlfn.XLOOKUP("RED",$C$7:C14,$A$7:A14,"",0,-1)),1),C14) -> BLACK | E14: =IF(AND(COUNTIF($D$7:D14,"RED")>0,COUNTIF($D$7:D14,"BLACK")>0),A14-MIN(_xlfn.XLOOKUP("BLACK",$D$7:D14,$A$7:A14,"",0,-1),_xlfn.XLOOKUP("RED",$D$7:D14,$A$7:A14,"",0,-1)),A14-6) -> 1 | K14: 310 | M14: 50 | N14: 1 | P14: 7 | Q14: =COUNTIF(E:E,P14) -> 1 | R14: 0
A15: =ROW() -> 15 | B15: 1 | C15: =_xlfn.XLOOKUP(B15,AUX!$A:$A,AUX!$B:$B,"",0,1) -> RED | D15: =IF(C15=0,INDEX($C:$C,MAX(_xlfn.XLOOKUP("BLACK",$C$7:C15,$A$7:A15,"",0,-1),_xlfn.XLOOKUP("RED",$C$7:C15,$A$7:A15,"",0,-1)),1),C15) -> RED | E15: =IF(AND(COUNTIF($D$7:D15,"RED")>0,COUNTIF($D$7:D15,"BLACK")>0),A15-MIN(_xlfn.XLOOKUP("BLACK",$D$7:D15,$A$7:A15,"",0,-1),_xlfn.XLOOKUP("RED",$D$7:D15,$A$7:A15,"",0,-1)),A15-6) -> 1 | F15: BET | G15: RED | H15: SUCCESS | I15: 5 | J15: 10 | K15: 315 | M15: 50 | N15: 1 | P15: 8 | Q15: =COUNTIF(E:E,P15) -> 1 | R15: 0
A16: =ROW() -> 16 | B16: 10 | C16: =_xlfn.XLOOKUP(B16,AUX!$A:$A,AUX!$B:$B,"",0,1) -> BLACK | D16: =IF(C16=0,INDEX($C:$C,MAX(_xlfn.XLOOKUP("BLACK",$C$7:C16,$A$7:A16,"",0,-1),_xlfn.XLOOKUP("RED",$C$7:C16,$A$7:A16,"",0,-1)),1),C16) -> BLACK | E16: =IF(AND(COUNTIF($D$7:D16,"RED")>0,COUNTIF($D$7:D16,"BLACK")>0),A16-MIN(_xlfn.XLOOKUP("BLACK",$D$7:D16,$A$7:A16,"",0,-1),_xlfn.XLOOKUP("RED",$D$7:D16,$A$7:A16,"",0,-1)),A16-6) -> 1 | F16: BET | G16: BLACK | H16: SUCCESS | I16: 5 | J16: 10 | K16: 320 | M16: 50 | N16: 1 | P16: 9 | Q16: =COUNTIF(E:E,P16) -> 1 | R16: 1
A17: =ROW() -> 17 | B17: 35 | C17: =_xlfn.XLOOKUP(B17,AUX!$A:$A,AUX!$B:$B,"",0,1) -> RED | D17: =IF(C17=0,INDEX($C:$C,MAX(_xlfn.XLOOKUP("BLACK",$C$7:C17,$A$7:A17,"",0,-1),_xlfn.XLOOKUP("RED",$C$7:C17,$A$7:A17,"",0,-1)),1),C17) -> RED | E17: =IF(AND(COUNTIF($D$7:D17,"RED")>0,COUNTIF($D$7:D17,"BLACK")>0),A17-MIN(_xlfn.XLOOKUP("BLACK",$D$7:D17,$A$7:A17,"",0,-1),_xlfn.XLOOKUP("RED",$D$7:D17,$A$7:A17,"",0,-1)),A17-6) -> 1 | F17: BET | G17: RED | H17: SUCCESS | I17: 5 | J17: 10 | K17: 325 | M17: 50 | P17: 10 | Q17: =COUNTIF(E:E,P17) -> 0 | R17: 0
A18: =ROW() -> 18 | B18: 5 | C18: =_xlfn.XLOOKUP(B18,AUX!$A:$A,AUX!$B:$B,"",0,1) -> RED | D18: =IF(C18=0,INDEX($C:$C,MAX(_xlfn.XLOOKUP("BLACK",$C$7:C18,$A$7:A18,"",0,-1),_xlfn.XLOOKUP("RED",$C$7:C18,$A$7:A18,"",0,-1)),1),C18) -> RED | E18: =IF(AND(COUNTIF($D$7:D18,"RED")>0,COUNTIF($D$7:D18,"BLACK")>0),A18-MIN(_xlfn.XLOOKUP("BLACK",$D$7:D18,$A$7:A18,"",0,-1),_xlfn.XLOOKUP("RED",$D$7:D18,$A$7:A18,"",0,-1)),A18-6) -> 2 | F18: BET | G18: BLACK | H18: FAIL | I18: 5 | J18: 0 | K18: 320 | L18: STOP | M18: 100 | P18: 11 | Q18: =COUNTIF(E:E,P18) -> 0 | R18: 0
A19: =ROW() -> 19 | B19: 23 | C19: =_xlfn.XLOOKUP(B19,AUX!$A:$A,AUX!$B:$B,"",0,1) -> RED | D19: =IF(C19=0,INDEX($C:$C,MAX(_xlfn.XLOOKUP("BLACK",$C$7:C19,$A$7:A19,"",0,-1),_xlfn.XLOOKUP("RED",$C$7:C19,$A$7:A19,"",0,-1)),1),C19) -> RED | E19: =IF(AND(COUNTIF($D$7:D19,"RED")>0,COUNTIF($D$7:D19,"BLACK")>0),A19-MIN(_xlfn.XLOOKUP("BLACK",$D$7:D19,$A$7:A19,"",0,-1),_xlfn.XLOOKUP("RED",$D$7:D19,$A$7:A19,"",0,-1)),A19-6) -> 3 | K19: 320 | L19: STOP | M19: 150 | N19: 3 | P19: 12 | Q19: =COUNTIF(E:E,P19) -> 0 | R19: 0
A20: =ROW() -> 20 | B20: 26 | C20: =_xlfn.XLOOKUP(B20,AUX!$A:$A,AUX!$B:$B,"",0,1) -> BLACK | D20: =IF(C20=0,INDEX($C:$C,MAX(_xlfn.XLOOKUP("BLACK",$C$7:C20,$A$7:A20,"",0,-1),_xlfn.XLOOKUP("RED",$C$7:C20,$A$7:A20,"",0,-1)),1),C20) -> BLACK | E20: =IF(AND(COUNTIF($D$7:D20,"RED")>0,COUNTIF($D$7:D20,"BLACK")>0),A20-MIN(_xlfn.XLOOKUP("BLACK",$D$7:D20,$A$7:A20,"",0,-1),_xlfn.XLOOKUP("RED",$D$7:D20,$A$7:A20,"",0,-1)),A20-6) -> 1 | K20: 320 | M20: 50 | P20: 13 | Q20: =COUNTIF(E:E,P20) -> 0 | R20: 0
A21: =ROW() -> 21 | B21: 34 | C21: =_xlfn.XLOOKUP(B21,AUX!$A:$A,AUX!$B:$B,"",0,1) -> BLACK | D21: =IF(C21=0,INDEX($C:$C,MAX(_xlfn.XLOOKUP("BLACK",$C$7:C21,$A$7:A21,"",0,-1),_xlfn.XLOOKUP("RED",$C$7:C21,$A$7:A21,"",0,-1)),1),C21) -> BLACK | E21: =IF(AND(COUNTIF($D$7:D21,"RED")>0,COUNTIF($D$7:D21,"BLACK")>0),A21-MIN(_xlfn.XLOOKUP("BLACK",$D$7:D21,$A$7:A21,"",0,-1),_xlfn.XLOOKUP("RED",$D$7:D21,$A$7:A21,"",0,-1)),A21-6) -> 2 | F21: BET | G21: RED | H21: FAIL | I21: 5 | J21: 0 | K21: 315 | L21: STOP | M21: 100 | N21: 2 | P21: 14 | Q21: =COUNTIF(E:E,P21) -> 0 | R21: 0
A22: =ROW() -> 22 | B22: 7 | C22: =_xlfn.XLOOKUP(B22,AUX!$A:$A,AUX!$B:$B,"",0,1) -> RED | D22: =IF(C22=0,INDEX($C:$C,MAX(_xlfn.XLOOKUP("BLACK",$C$7:C22,$A$7:A22,"",0,-1),_xlfn.XLOOKUP("RED",$C$7:C22,$A$7:A22,"",0,-1)),1),C22) -> RED | E22: =IF(AND(COUNTIF($D$7:D22,"RED")>0,COUNTIF($D$7:D22,"BLACK")>0),A22-MIN(_xlfn.XLOOKUP("BLACK",$D$7:D22,$A$7:A22,"",0,-1),_xlfn.XLOOKUP("RED",$D$7:D22,$A$7:A22,"",0,-1)),A22-6) -> 1 | K22: 315 | M22: 50 | N22: 1 | P22: 15 | Q22: =COUNTIF(E:E,P22) -> 0 | R22: 0
A23: =ROW() -> 23 | B23: 28 | C23: =_xlfn.XLOOKUP(B23,AUX!$A:$A,AUX!$B:$B,"",0,1) -> BLACK | D23: =IF(C23=0,INDEX($C:$C,MAX(_xlfn.XLOOKUP("BLACK",$C$7:C23,$A$7:A23,"",0,-1),_xlfn.XLOOKUP("RED",$C$7:C23,$A$7:A23,"",0,-1)),1),C23) -> BLACK | E23: =IF(AND(COUNTIF($D$7:D23,"RED")>0,COUNTIF($D$7:D23,"BLACK")>0),A23-MIN(_xlfn.XLOOKUP("BLACK",$D$7:D23,$A$7:A23,"",0,-1),_xlfn.XLOOKUP("RED",$D$7:D23,$A$7:A23,"",0,-1)),A23-6) -> 1 | F23: BET | G23: BLACK | H23: SUCCESS | I23: 5 | J23: 10 | K23: 320 | M23: 50 | N23: 1 | P23: 16 | Q23: =COUNTIF(E:E,P23) -> 0 | R23: 0
A24: =ROW() -> 24 | B24: 13 | C24: =_xlfn.XLOOKUP(B24,AUX!$A:$A,AUX!$B:$B,"",0,1) -> RED | D24: =IF(C24=0,INDEX($C:$C,MAX(_xlfn.XLOOKUP("BLACK",$C$7:C24,$A$7:A24,"",0,-1),_xlfn.XLOOKUP("RED",$C$7:C24,$A$7:A24,"",0,-1)),1),C24) -> RED | E24: =IF(AND(COUNTIF($D$7:D24,"RED")>0,COUNTIF($D$7:D24,"BLACK")>0),A24-MIN(_xlfn.XLOOKUP("BLACK",$D$7:D24,$A$7:A24,"",0,-1),_xlfn.XLOOKUP("RED",$D$7:D24,$A$7:A24,"",0,-1)),A24-6) -> 1 | F24: BET | G24: RED | H24: SUCCESS | I24: 5 | J24: 10 | K24: 325 | M24: 50 | N24: 1 | P24: 17 | Q24: =COUNTIF(E:E,P24) -> 0 | R24: 0
A25: =ROW() -> 25 | B25: 16 | C25: =_xlfn.XLOOKUP(B25,AUX!$A:$A,AUX!$B:$B,"",0,1) -> BLACK | D25: =IF(C25=0,INDEX($C:$C,MAX(_xlfn.XLOOKUP("BLACK",$C$7:C25,$A$7:A25,"",0,-1),_xlfn.XLOOKUP("RED",$C$7:C25,$A$7:A25,"",0,-1)),1),C25) -> BLACK | E25: =IF(AND(COUNTIF($D$7:D25,"RED")>0,COUNTIF($D$7:D25,"BLACK")>0),A25-MIN(_xlfn.XLOOKUP("BLACK",$D$7:D25,$A$7:A25,"",0,-1),_xlfn.XLOOKUP("RED",$D$7:D25,$A$7:A25,"",0,-1)),A25-6) -> 1 | F25: BET | G25: BLACK | H25: SUCCESS | I25: 5 | J25: 10 | K25: 330 | M25: 50 | P25: 18 | Q25: =COUNTIF(E:E,P25) -> 0 | R25: 0
A26: =ROW() -> 26 | B26: 22 | C26: =_xlfn.XLOOKUP(B26,AUX!$A:$A,AUX!$B:$B,"",0,1) -> BLACK | D26: =IF(C26=0,INDEX($C:$C,MAX(_xlfn.XLOOKUP("BLACK",$C$7:C26,$A$7:A26,"",0,-1),_xlfn.XLOOKUP("RED",$C$7:C26,$A$7:A26,"",0,-1)),1),C26) -> BLACK | E26: =IF(AND(COUNTIF($D$7:D26,"RED")>0,COUNTIF($D$7:D26,"BLACK")>0),A26-MIN(_xlfn.XLOOKUP("BLACK",$D$7:D26,$A$7:A26,"",0,-1),_xlfn.XLOOKUP("RED",$D$7:D26,$A$7:A26,"",0,-1)),A26-6) -> 2 | F26: BET | G26: RED | H26: FAIL | I26: 5 | J26: 0 | K26: 325 | L26: STOP | M26: 100 | N26: 2 | P26: 19 | Q26: =COUNTIF(E:E,P26) -> 0 | R26: 0
A27: =ROW() -> 27 | B27: 21 | C27: =_xlfn.XLOOKUP(B27,AUX!$A:$A,AUX!$B:$B,"",0,1) -> RED | D27: =IF(C27=0,INDEX($C:$C,MAX(_xlfn.XLOOKUP("BLACK",$C$7:C27,$A$7:A27,"",0,-1),_xlfn.XLOOKUP("RED",$C$7:C27,$A$7:A27,"",0,-1)),1),C27) -> RED | E27: =IF(AND(COUNTIF($D$7:D27,"RED")>0,COUNTIF($D$7:D27,"BLACK")>0),A27-MIN(_xlfn.XLOOKUP("BLACK",$D$7:D27,$A$7:A27,"",0,-1),_xlfn.XLOOKUP("RED",$D$7:D27,$A$7:A27,"",0,-1)),A27-6) -> 1 | K27: 325 | M27: 50 | P27: 20 | Q27: =COUNTIF(E:E,P27) -> 0 | R27: 0
A28: =ROW() -> 28 | B28: 23 | C28: =_xlfn.XLOOKUP(B28,AUX!$A:$A,AUX!$B:$B,"",0,1) -> RED | D28: =IF(C28=0,INDEX($C:$C,MAX(_xlfn.XLOOKUP("BLACK",$C$7:C28,$A$7:A28,"",0,-1),_xlfn.XLOOKUP("RED",$C$7:C28,$A$7:A28,"",0,-1)),1),C28) -> RED | E28: =IF(AND(COUNTIF($D$7:D28,"RED")>0,COUNTIF($D$7:D28,"BLACK")>0),A28-MIN(_xlfn.XLOOKUP("BLACK",$D$7:D28,$A$7:A28,"",0,-1),_xlfn.XLOOKUP("RED",$D$7:D28,$A$7:A28,"",0,-1)),A28-6) -> 2 | F28: BET | G28: BLACK | H28: FAIL | I28: 5 | J28: 0 | K28: 320 | L28: STOP | M28: 100
A29: =ROW() -> 29 | B29: 5 | C29: =_xlfn.XLOOKUP(B29,AUX!$A:$A,AUX!$B:$B,"",0,1) -> RED | D29: =IF(C29=0,INDEX($C:$C,MAX(_xlfn.XLOOKUP("BLACK",$C$7:C29,$A$7:A29,"",0,-1),_xlfn.XLOOKUP("RED",$C$7:C29,$A$7:A29,"",0,-1)),1),C29) -> RED | E29: =IF(AND(COUNTIF($D$7:D29,"RED")>0,COUNTIF($D$7:D29,"BLACK")>0),A29-MIN(_xlfn.XLOOKUP("BLACK",$D$7:D29,$A$7:A29,"",0,-1),_xlfn.XLOOKUP("RED",$D$7:D29,$A$7:A29,"",0,-1)),A29-6) -> 3 | K29: 320 | L29: STOP | M29: 150 | N29: 3
A30: =ROW() -> 30 | B30: 34 | C30: =_xlfn.XLOOKUP(B30,AUX!$A:$A,AUX!$B:$B,"",0,1) -> BLACK | D30: =IF(C30=0,INDEX($C:$C,MAX(_xlfn.XLOOKUP("BLACK",$C$7:C30,$A$7:A30,"",0,-1),_xlfn.XLOOKUP("RED",$C$7:C30,$A$7:A30,"",0,-1)),1),C30) -> BLACK | E30: =IF(AND(COUNTIF($D$7:D30,"RED")>0,COUNTIF($D$7:D30,"BLACK")>0),A30-MIN(_xlfn.XLOOKUP("BLACK",$D$7:D30,$A$7:A30,"",0,-1),_xlfn.XLOOKUP("RED",$D$7:D30,$A$7:A30,"",0,-1)),A30-6) -> 1 | K30: 320 | M30: 50 | N30: 1
A31: =ROW() -> 31 | B31: 3 | C31: =_xlfn.XLOOKUP(B31,AUX!$A:$A,AUX!$B:$B,"",0,1) -> RED | D31: =IF(C31=0,INDEX($C:$C,MAX(_xlfn.XLOOKUP("BLACK",$C$7:C31,$A$7:A31,"",0,-1),_xlfn.XLOOKUP("RED",$C$7:C31,$A$7:A31,"",0,-1)),1),C31) -> RED | E31: =IF(AND(COUNTIF($D$7:D31,"RED")>0,COUNTIF($D$7:D31,"BLACK")>0),A31-MIN(_xlfn.XLOOKUP("BLACK",$D$7:D31,$A$7:A31,"",0,-1),_xlfn.XLOOKUP("RED",$D$7:D31,$A$7:A31,"",0,-1)),A31-6) -> 1 | F31: BET | G31: RED | H31: SUCCESS | I31: 5 | J31: 10 | K31: 325 | M31: 50
A32: =ROW() -> 32 | B32: 17 | C32: =_xlfn.XLOOKUP(B32,AUX!$A:$A,AUX!$B:$B,"",0,1) -> RED | D32: =IF(C32=0,INDEX($C:$C,MAX(_xlfn.XLOOKUP("BLACK",$C$7:C32,$A$7:A32,"",0,-1),_xlfn.XLOOKUP("RED",$C$7:C32,$A$7:A32,"",0,-1)),1),C32) -> RED | E32: =IF(AND(COUNTIF($D$7:D32,"RED")>0,COUNTIF($D$7:D32,"BLACK")>0),A32-MIN(_xlfn.XLOOKUP("BLACK",$D$7:D32,$A$7:A32,"",0,-1),_xlfn.XLOOKUP("RED",$D$7:D32,$A$7:A32,"",0,-1)),A32-6) -> 2 | F32: BET | G32: BLACK | H32: FAIL | I32: 5 | J32: 0 | K32: 320 | L32: STOP | M32: 100
A33: =ROW() -> 33 | B33: 17 | C33: =_xlfn.XLOOKUP(B33,AUX!$A:$A,AUX!$B:$B,"",0,1) -> RED | D33: =IF(C33=0,INDEX($C:$C,MAX(_xlfn.XLOOKUP("BLACK",$C$7:C33,$A$7:A33,"",0,-1),_xlfn.XLOOKUP("RED",$C$7:C33,$A$7:A33,"",0,-1)),1),C33) -> RED | E33: =IF(AND(COUNTIF($D$7:D33,"RED")>0,COUNTIF($D$7:D33,"BLACK")>0),A33-MIN(_xlfn.XLOOKUP("BLACK",$D$7:D33,$A$7:A33,"",0,-1),_xlfn.XLOOKUP("RED",$D$7:D33,$A$7:A33,"",0,-1)),A33-6) -> 3 | K33: 320 | L33: STOP | M33: 150
A34: =ROW() -> 34 | B34: 13 | C34: =_xlfn.XLOOKUP(B34,AUX!$A:$A,AUX!$B:$B,"",0,1) -> RED | D34: =IF(C34=0,INDEX($C:$C,MAX(_xlfn.XLOOKUP("BLACK",$C$7:C34,$A$7:A34,"",0,-1),_xlfn.XLOOKUP("RED",$C$7:C34,$A$7:A34,"",0,-1)),1),C34) -> RED | E34: =IF(AND(COUNTIF($D$7:D34,"RED")>0,COUNTIF($D$7:D34,"BLACK")>0),A34-MIN(_xlfn.XLOOKUP("BLACK",$D$7:D34,$A$7:A34,"",0,-1),_xlfn.XLOOKUP("RED",$D$7:D34,$A$7:A34,"",0,-1)),A34-6) -> 4 | K34: 320 | L34: STOP | M34: 200 | N34: 4
A35: =ROW() -> 35 | B35: 32 | C35: =_xlfn.XLOOKUP(B35,AUX!$A:$A,AUX!$B:$B,"",0,1) -> BLACK | D35: =IF(C35=0,INDEX($C:$C,MAX(_xlfn.XLOOKUP("BLACK",$C$7:C35,$A$7:A35,"",0,-1),_xlfn.XLOOKUP("RED",$C$7:C35,$A$7:A35,"",0,-1)),1),C35) -> BLACK | E35: =IF(AND(COUNTIF($D$7:D35,"RED")>0,COUNTIF($D$7:D35,"BLACK")>0),A35-MIN(_xlfn.XLOOKUP("BLACK",$D$7:D35,$A$7:A35,"",0,-1),_xlfn.XLOOKUP("RED",$D$7:D35,$A$7:A35,"",0,-1)),A35-6) -> 1 | K35: 320 | M35: 50
A36: =ROW() -> 36 | B36: 4 | C36: =_xlfn.XLOOKUP(B36,AUX!$A:$A,AUX!$B:$B,"",0,1) -> BLACK | D36: =IF(C36=0,INDEX($C:$C,MAX(_xlfn.XLOOKUP("BLACK",$C$7:C36,$A$7:A36,"",0,-1),_xlfn.XLOOKUP("RED",$C$7:C36,$A$7:A36,"",0,-1)),1),C36) -> BLACK | E36: =IF(AND(COUNTIF($D$7:D36,"RED")>0,COUNTIF($D$7:D36,"BLACK")>0),A36-MIN(_xlfn.XLOOKUP("BLACK",$D$7:D36,$A$7:A36,"",0,-1),_xlfn.XLOOKUP("RED",$D$7:D36,$A$7:A36,"",0,-1)),A36-6) -> 2 | F36: BET | G36: RED | H36: FAIL | I36: 5 | J36: 0 | K36: 315 | L36: STOP | M36: 100
A37: =ROW() -> 37 | B37: 26 | C37: =_xlfn.XLOOKUP(B37,AUX!$A:$A,AUX!$B:$B,"",0,1) -> BLACK | D37: =IF(C37=0,INDEX($C:$C,MAX(_xlfn.XLOOKUP("BLACK",$C$7:C37,$A$7:A37,"",0,-1),_xlfn.XLOOKUP("RED",$C$7:C37,$A$7:A37,"",0,-1)),1),C37) -> BLACK | E37: =IF(AND(COUNTIF($D$7:D37,"RED")>0,COUNTIF($D$7:D37,"BLACK")>0),A37-MIN(_xlfn.XLOOKUP("BLACK",$D$7:D37,$A$7:A37,"",0,-1),_xlfn.XLOOKUP("RED",$D$7:D37,$A$7:A37,"",0,-1)),A37-6) -> 3 | K37: 315 | L37: STOP | M37: 150 | N37: 3
A38: =ROW() -> 38 | B38: 35 | C38: =_xlfn.XLOOKUP(B38,AUX!$A:$A,AUX!$B:$B,"",0,1) -> RED | D38: =IF(C38=0,INDEX($C:$C,MAX(_xlfn.XLOOKUP("BLACK",$C$7:C38,$A$7:A38,"",0,-1),_xlfn.XLOOKUP("RED",$C$7:C38,$A$7:A38,"",0,-1)),1),C38) -> RED | E38: =IF(AND(COUNTIF($D$7:D38,"RED")>0,COUNTIF($D$7:D38,"BLACK")>0),A38-MIN(_xlfn.XLOOKUP("BLACK",$D$7:D38,$A$7:A38,"",0,-1),_xlfn.XLOOKUP("RED",$D$7:D38,$A$7:A38,"",0,-1)),A38-6) -> 1 | K38: 315 | M38: 50 | N38: 1
A39: =ROW() -> 39 | B39: 12 | C39: =_xlfn.XLOOKUP(B39,AUX!$A:$A,AUX!$B:$B,"",0,1) -> BLACK | D39: =IF(C39=0,INDEX($C:$C,MAX(_xlfn.XLOOKUP("BLACK",$C$7:C39,$A$7:A39,"",0,-1),_xlfn.XLOOKUP("RED",$C$7:C39,$A$7:A39,"",0,-1)),1),C39) -> BLACK | E39: =IF(AND(COUNTIF($D$7:D39,"RED")>0,COUNTIF($D$7:D39,"BLACK")>0),A39-MIN(_xlfn.XLOOKUP("BLACK",$D$7:D39,$A$7:A39,"",0,-1),_xlfn.XLOOKUP("RED",$D$7:D39,$A$7:A39,"",0,-1)),A39-6) -> 1 | F39: BET | G39: BLACK | H39: SUCCESS | I39: 5 | J39: 10 | K39: 320 | M39: 50
A40: =ROW() -> 40 | B40: 20 | C40: =_xlfn.XLOOKUP(B40,AUX!$A:$A,AUX!$B:$B,"",0,1) -> BLACK | D40: =IF(C40=0,INDEX($C:$C,MAX(_xlfn.XLOOKUP("BLACK",$C$7:C40,$A$7:A40,"",0,-1),_xlfn.XLOOKUP("RED",$C$7:C40,$A$7:A40,"",0,-1)),1),C40) -> BLACK | E40: =IF(AND(COUNTIF($D$7:D40,"RED")>0,COUNTIF($D$7:D40,"BLACK")>0),A40-MIN(_xlfn.XLOOKUP("BLACK",$D$7:D40,$A$7:A40,"",0,-1),_xlfn.XLOOKUP("RED",$D$7:D40,$A$7:A40,"",0,-1)),A40-6) -> 2 | F40: BET | G40: RED | H40: FAIL | I40: 5 | J40: 0 | K40: 315 | L40: STOP | M40: 100
A41: =ROW() -> 41 | B41: 34 | C41: =_xlfn.XLOOKUP(B41,AUX!$A:$A,AUX!$B:$B,"",0,1) -> BLACK | D41: =IF(C41=0,INDEX($C:$C,MAX(_xlfn.XLOOKUP("BLACK",$C$7:C41,$A$7:A41,"",0,-1),_xlfn.XLOOKUP("RED",$C$7:C41,$A$7:A41,"",0,-1)),1),C41) -> BLACK | E41: =IF(AND(COUNTIF($D$7:D41,"RED")>0,COUNTIF($D$7:D41,"BLACK")>0),A41-MIN(_xlfn.XLOOKUP("BLACK",$D$7:D41,$A$7:A41,"",0,-1),_xlfn.XLOOKUP("RED",$D$7:D41,$A$7:A41,"",0,-1)),A41-6) -> 3 | K41: 315 | L41: STOP | M41: 150
A42: =ROW() -> 42 | B42: 4 | C42: =_xlfn.XLOOKUP(B42,AUX!$A:$A,AUX!$B:$B,"",0,1) -> BLACK | D42: =IF(C42=0,INDEX($C:$C,MAX(_xlfn.XLOOKUP("BLACK",$C$7:C42,$A$7:A42,"",0,-1),_xlfn.XLOOKUP("RED",$C$7:C42,$A$7:A42,"",0,-1)),1),C42) -> BLACK | E42: =IF(AND(COUNTIF($D$7:D42,"RED")>0,COUNTIF($D$7:D42,"BLACK")>0),A42-MIN(_xlfn.XLOOKUP("BLACK",$D$7:D42,$A$7:A42,"",0,-1),_xlfn.XLOOKUP("RED",$D$7:D42,$A$7:A42,"",0,-1)),A42-6) -> 4 | K42: 315 | L42: STOP | M42: 200
A43: =ROW() -> 43 | B43: 24 | C43: =_xlfn.XLOOKUP(B43,AUX!$A:$A,AUX!$B:$B,"",0,1) -> BLACK | D43: =IF(C43=0,INDEX($C:$C,MAX(_xlfn.XLOOKUP("BLACK",$C$7:C43,$A$7:A43,"",0,-1),_xlfn.XLOOKUP("RED",$C$7:C43,$A$7:A43,"",0,-1)),1),C43) -> BLACK | E43: =IF(AND(COUNTIF($D$7:D43,"RED")>0,COUNTIF($D$7:D43,"BLACK")>0),A43-MIN(_xlfn.XLOOKUP("BLACK",$D$7:D43,$A$7:A43,"",0,-1),_xlfn.XLOOKUP("RED",$D$7:D43,$A$7:A43,"",0,-1)),A43-6) -> 5 | K43: 315 | L43: STOP | M43: 250 | N43: 5
A44: =ROW() -> 44 | B44: 3 | C44: =_xlfn.XLOOKUP(B44,AUX!$A:$A,AUX!$B:$B,"",0,1) -> RED | D44: =IF(C44=0,INDEX($C:$C,MAX(_xlfn.XLOOKUP("BLACK",$C$7:C44,$A$7:A44,"",0,-1),_xlfn.XLOOKUP("RED",$C$7:C44,$A$7:A44,"",0,-1)),1),C44) -> RED | E44: =IF(AND(COUNTIF($D$7:D44,"RED")>0,COUNTIF($D$7:D44,"BLACK")>0),A44-MIN(_xlfn.XLOOKUP("BLACK",$D$7:D44,$A$7:A44,"",0,-1),_xlfn.XLOOKUP("RED",$D$7:D44,$A$7:A44,"",0,-1)),A44-6) -> 1 | K44: 315 | M44: 50
A45: =ROW() -> 45 | B45: 21 | C45: =_xlfn.XLOOKUP(B45,AUX!$A:$A,AUX!$B:$B,"",0,1) -> RED | D45: =IF(C45=0,INDEX($C:$C,MAX(_xlfn.XLOOKUP("BLACK",$C$7:C45,$A$7:A45,"",0,-1),_xlfn.XLOOKUP("RED",$C$7:C45,$A$7:A45,"",0,-1)),1),C45) -> RED | E45: =IF(AND(COUNTIF($D$7:D45,"RED")>0,COUNTIF($D$7:D45,"BLACK")>0),A45-MIN(_xlfn.XLOOKUP("BLACK",$D$7:D45,$A$7:A45,"",0,-1),_xlfn.XLOOKUP("RED",$D$7:D45,$A$7:A45,"",0,-1)),A45-6) -> 2 | F45: BET | G45: BLACK | H45: FAIL | I45: 5 | J45: 0 | K45: 310 | L45: STOP | M45: 100
A46: =ROW() -> 46 | B46: 9 | C46: =_xlfn.XLOOKUP(B46,AUX!$A:$A,AUX!$B:$B,"",0,1) -> RED | D46: =IF(C46=0,INDEX($C:$C,MAX(_xlfn.XLOOKUP("BLACK",$C$7:C46,$A$7:A46,"",0,-1),_xlfn.XLOOKUP("RED",$C$7:C46,$A$7:A46,"",0,-1)),1),C46) -> RED | E46: =IF(AND(COUNTIF($D$7:D46,"RED")>0,COUNTIF($D$7:D46,"BLACK")>0),A46-MIN(_xlfn.XLOOKUP("BLACK",$D$7:D46,$A$7:A46,"",0,-1),_xlfn.XLOOKUP("RED",$D$7:D46,$A$7:A46,"",0,-1)),A46-6) -> 3 | K46: 310 | L46: STOP | M46: 150 | N46: 3
A47: =ROW() -> 47 | B47: 30 | C47: =_xlfn.XLOOKUP(B47,AUX!$A:$A,AUX!$B:$B,"",0,1) -> BLACK | D47: =IF(C47=0,INDEX($C:$C,MAX(_xlfn.XLOOKUP("BLACK",$C$7:C47,$A$7:A47,"",0,-1),_xlfn.XLOOKUP("RED",$C$7:C47,$A$7:A47,"",0,-1)),1),C47) -> BLACK | E47: =IF(AND(COUNTIF($D$7:D47,"RED")>0,COUNTIF($D$7:D47,"BLACK")>0),A47-MIN(_xlfn.XLOOKUP("BLACK",$D$7:D47,$A$7:A47,"",0,-1),_xlfn.XLOOKUP("RED",$D$7:D47,$A$7:A47,"",0,-1)),A47-6) -> 1 | K47: 310 | M47: 50 | N47: 1
A48: =ROW() -> 48 | B48: 23 | C48: =_xlfn.XLOOKUP(B48,AUX!$A:$A,AUX!$B:$B,"",0,1) -> RED | D48: =IF(C48=0,INDEX($C:$C,MAX(_xlfn.XLOOKUP("BLACK",$C$7:C48,$A$7:A48,"",0,-1),_xlfn.XLOOKUP("RED",$C$7:C48,$A$7:A48,"",0,-1)),1),C48) -> RED | E48: =IF(AND(COUNTIF($D$7:D48,"RED")>0,COUNTIF($D$7:D48,"BLACK")>0),A48-MIN(_xlfn.XLOOKUP("BLACK",$D$7:D48,$A$7:A48,"",0,-1),_xlfn.XLOOKUP("RED",$D$7:D48,$A$7:A48,"",0,-1)),A48-6) -> 1 | F48: BET | G48: RED | H48: SUCCESS | I48: 5 | J48: 10 | K48: 315 | M48: 50 | N48: 1
A49: =ROW() -> 49 | B49: 14 | C49: =_xlfn.XLOOKUP(B49,AUX!$A:$A,AUX!$B:$B,"",0,1) -> BLACK | D49: =IF(C49=0,INDEX($C:$C,MAX(_xlfn.XLOOKUP("BLACK",$C$7:C49,$A$7:A49,"",0,-1),_xlfn.XLOOKUP("RED",$C$7:C49,$A$7:A49,"",0,-1)),1),C49) -> BLACK | E49: =IF(AND(COUNTIF($D$7:D49,"RED")>0,COUNTIF($D$7:D49,"BLACK")>0),A49-MIN(_xlfn.XLOOKUP("BLACK",$D$7:D49,$A$7:A49,"",0,-1),_xlfn.XLOOKUP("RED",$D$7:D49,$A$7:A49,"",0,-1)),A49-6) -> 1 | F49: BET | G49: BLACK | H49: SUCCESS | I49: 5 | J49: 10 | K49: 320 | M49: 50
A50: =ROW() -> 50 | B50: 14 | C50: =_xlfn.XLOOKUP(B50,AUX!$A:$A,AUX!$B:$B,"",0,1) -> BLACK | D50: =IF(C50=0,INDEX($C:$C,MAX(_xlfn.XLOOKUP("BLACK",$C$7:C50,$A$7:A50,"",0,-1),_xlfn.XLOOKUP("RED",$C$7:C50,$A$7:A50,"",0,-1)),1),C50) -> BLACK | E50: =IF(AND(COUNTIF($D$7:D50,"RED")>0,COUNTIF($D$7:D50,"BLACK")>0),A50-MIN(_xlfn.XLOOKUP("BLACK",$D$7:D50,$A$7:A50,"",0,-1),_xlfn.XLOOKUP("RED",$D$7:D50,$A$7:A50,"",0,-1)),A50-6) -> 2 | F50: BET | G50: RED | H50: FAIL | I50: 5 | J50: 0 | K50: 315 | L50: STOP | M50: 100 | N50: 2
A51: =ROW() -> 51 | B51: 9 | C51: =_xlfn.XLOOKUP(B51,AUX!$A:$A,AUX!$B:$B,"",0,1) -> RED | D51: =IF(C51=0,INDEX($C:$C,MAX(_xlfn.XLOOKUP("BLACK",$C$7:C51,$A$7:A51,"",0,-1),_xlfn.XLOOKUP("RED",$C$7:C51,$A$7:A51,"",0,-1)),1),C51) -> RED | E51: =IF(AND(COUNTIF($D$7:D51,"RED")>0,COUNTIF($D$7:D51,"BLACK")>0),A51-MIN(_xlfn.XLOOKUP("BLACK",$D$7:D51,$A$7:A51,"",0,-1),_xlfn.XLOOKUP("RED",$D$7:D51,$A$7:A51,"",0,-1)),A51-6) -> 1 | K51: 315 | M51: 50 | N51: 1
A52: =ROW() -> 52 | B52: 24 | C52: =_xlfn.XLOOKUP(B52,AUX!$A:$A,AUX!$B:$B,"",0,1) -> BLACK | D52: =IF(C52=0,INDEX($C:$C,MAX(_xlfn.XLOOKUP("BLACK",$C$7:C52,$A$7:A52,"",0,-1),_xlfn.XLOOKUP("RED",$C$7:C52,$A$7:A52,"",0,-1)),1),C52) -> BLACK | E52: =IF(AND(COUNTIF($D$7:D52,"RED")>0,COUNTIF($D$7:D52,"BLACK")>0),A52-MIN(_xlfn.XLOOKUP("BLACK",$D$7:D52,$A$7:A52,"",0,-1),_xlfn.XLOOKUP("RED",$D$7:D52,$A$7:A52,"",0,-1)),A52-6) -> 1 | F52: BET | G52: BLACK | H52: SUCCESS | I52: 5 | J52: 10 | K52: 320 | M52: 50 | N52: 1
A53: =ROW() -> 53 | B53: 9 | C53: =_xlfn.XLOOKUP(B53,AUX!$A:$A,AUX!$B:$B,"",0,1) -> RED | D53: =IF(C53=0,INDEX($C:$C,MAX(_xlfn.XLOOKUP("BLACK",$C$7:C53,$A$7:A53,"",0,-1),_xlfn.XLOOKUP("RED",$C$7:C53,$A$7:A53,"",0,-1)),1),C53) -> RED | E53: =IF(AND(COUNTIF($D$7:D53,"RED")>0,COUNTIF($D$7:D53,"BLACK")>0),A53-MIN(_xlfn.XLOOKUP("BLACK",$D$7:D53,$A$7:A53,"",0,-1),_xlfn.XLOOKUP("RED",$D$7:D53,$A$7:A53,"",0,-1)),A53-6) -> 1 | F53: BET | G53: RED | H53: SUCCESS | I53: 5 | J53: 10 | K53: 325 | M53: 50
A54: =ROW() -> 54 | B54: 33 | C54: =_xlfn.XLOOKUP(B54,AUX!$A:$A,AUX!$B:$B,"",0,1) -> RED | D54: =IF(C54=0,INDEX($C:$C,MAX(_xlfn.XLOOKUP("BLACK",$C$7:C54,$A$7:A54,"",0,-1),_xlfn.XLOOKUP("RED",$C$7:C54,$A$7:A54,"",0,-1)),1),C54) -> RED | E54: =IF(AND(COUNTIF($D$7:D54,"RED")>0,COUNTIF($D$7:D54,"BLACK")>0),A54-MIN(_xlfn.XLOOKUP("BLACK",$D$7:D54,$A$7:A54,"",0,-1),_xlfn.XLOOKUP("RED",$D$7:D54,$A$7:A54,"",0,-1)),A54-6) -> 2 | F54: BET | G54: BLACK | H54: FAIL | I54: 5 | J54: 0 | K54: 320 | L54: STOP | M54: 100 | N54: 2
A55: =ROW() -> 55 | B55: 18 | C55: =_xlfn.XLOOKUP(B55,AUX!$A:$A,AUX!$B:$B,"",0,1) -> BLACK | D55: =IF(C55=0,INDEX($C:$C,MAX(_xlfn.XLOOKUP("BLACK",$C$7:C55,$A$7:A55,"",0,-1),_xlfn.XLOOKUP("RED",$C$7:C55,$A$7:A55,"",0,-1)),1),C55) -> BLACK | E55: =IF(AND(COUNTIF($D$7:D55,"RED")>0,COUNTIF($D$7:D55,"BLACK")>0),A55-MIN(_xlfn.XLOOKUP("BLACK",$D$7:D55,$A$7:A55,"",0,-1),_xlfn.XLOOKUP("RED",$D$7:D55,$A$7:A55,"",0,-1)),A55-6) -> 1 | K55: 320 | M55: 50
A56: =ROW() -> 56 | B56: 2 | C56: =_xlfn.XLOOKUP(B56,AUX!$A:$A,AUX!$B:$B,"",0,1) -> BLACK | D56: =IF(C56=0,INDEX($C:$C,MAX(_xlfn.XLOOKUP("BLACK",$C$7:C56,$A$7:A56,"",0,-1),_xlfn.XLOOKUP("RED",$C$7:C56,$A$7:A56,"",0,-1)),1),C56) -> BLACK | E56: =IF(AND(COUNTIF($D$7:D56,"RED")>0,COUNTIF($D$7:D56,"BLACK")>0),A56-MIN(_xlfn.XLOOKUP("BLACK",$D$7:D56,$A$7:A56,"",0,-1),_xlfn.XLOOKUP("RED",$D$7:D56,$A$7:A56,"",0,-1)),A56-6) -> 2 | F56: BET | G56: RED | H56: FAIL | I56: 5 | J56: 0 | K56: 315 | L56: STOP | M56: 100 | N56: 2
A57: =ROW() -> 57 | B57: 3 | C57: =_xlfn.XLOOKUP(B57,AUX!$A:$A,AUX!$B:$B,"",0,1) -> RED | D57: =IF(C57=0,INDEX($C:$C,MAX(_xlfn.XLOOKUP("BLACK",$C$7:C57,$A$7:A57,"",0,-1),_xlfn.XLOOKUP("RED",$C$7:C57,$A$7:A57,"",0,-1)),1),C57) -> RED | E57: =IF(AND(COUNTIF($D$7:D57,"RED")>0,COUNTIF($D$7:D57,"BLACK")>0),A57-MIN(_xlfn.XLOOKUP("BLACK",$D$7:D57,$A$7:A57,"",0,-1),_xlfn.XLOOKUP("RED",$D$7:D57,$A$7:A57,"",0,-1)),A57-6) -> 1 | K57: 315 | M57: 50 | N57: 1
A58: =ROW() -> 58 | B58: 34 | C58: =_xlfn.XLOOKUP(B58,AUX!$A:$A,AUX!$B:$B,"",0,1) -> BLACK | D58: =IF(C58=0,INDEX($C:$C,MAX(_xlfn.XLOOKUP("BLACK",$C$7:C58,$A$7:A58,"",0,-1),_xlfn.XLOOKUP("RED",$C$7:C58,$A$7:A58,"",0,-1)),1),C58) -> BLACK | E58: =IF(AND(COUNTIF($D$7:D58,"RED")>0,COUNTIF($D$7:D58,"BLACK")>0),A58-MIN(_xlfn.XLOOKUP("BLACK",$D$7:D58,$A$7:A58,"",0,-1),_xlfn.XLOOKUP("RED",$D$7:D58,$A$7:A58,"",0,-1)),A58-6) -> 1 | F58: BET | G58: BLACK | H58: SUCCESS | I58: 5 | J58: 10 | K58: 320 | M58: 50
A59: =ROW() -> 59 | B59: 30 | C59: =_xlfn.XLOOKUP(B59,AUX!$A:$A,AUX!$B:$B,"",0,1) -> BLACK | D59: =IF(C59=0,INDEX($C:$C,MAX(_xlfn.XLOOKUP("BLACK",$C$7:C59,$A$7:A59,"",0,-1),_xlfn.XLOOKUP("RED",$C$7:C59,$A$7:A59,"",0,-1)),1),C59) -> BLACK | E59: =IF(AND(COUNTIF($D$7:D59,"RED")>0,COUNTIF($D$7:D59,"BLACK")>0),A59-MIN(_xlfn.XLOOKUP("BLACK",$D$7:D59,$A$7:A59,"",0,-1),_xlfn.XLOOKUP("RED",$D$7:D59,$A$7:A59,"",0,-1)),A59-6) -> 2 | F59: BET | G59: RED | H59: FAIL | I59: 5 | J59: 0 | K59: 315 | L59: STOP | M59: 100 | N59: 2
A60: =ROW() -> 60 | B60: 9 | C60: =_xlfn.XLOOKUP(B60,AUX!$A:$A,AUX!$B:$B,"",0,1) -> RED | D60: =IF(C60=0,INDEX($C:$C,MAX(_xlfn.XLOOKUP("BLACK",$C$7:C60,$A$7:A60,"",0,-1),_xlfn.XLOOKUP("RED",$C$7:C60,$A$7:A60,"",0,-1)),1),C60) -> RED | E60: =IF(AND(COUNTIF($D$7:D60,"RED")>0,COUNTIF($D$7:D60,"BLACK")>0),A60-MIN(_xlfn.XLOOKUP("BLACK",$D$7:D60,$A$7:A60,"",0,-1),_xlfn.XLOOKUP("RED",$D$7:D60,$A$7:A60,"",0,-1)),A60-6) -> 1 | K60: 315 | M60: 50
A61: =ROW() -> 61 | B61: 9 | C61: =_xlfn.XLOOKUP(B61,AUX!$A:$A,AUX!$B:$B,"",0,1) -> RED | D61: =IF(C61=0,INDEX($C:$C,MAX(_xlfn.XLOOKUP("BLACK",$C$7:C61,$A$7:A61,"",0,-1),_xlfn.XLOOKUP("RED",$C$7:C61,$A$7:A61,"",0,-1)),1),C61) -> RED | E61: =IF(AND(COUNTIF($D$7:D61,"RED")>0,COUNTIF($D$7:D61,"BLACK")>0),A61-MIN(_xlfn.XLOOKUP("BLACK",$D$7:D61,$A$7:A61,"",0,-1),_xlfn.XLOOKUP("RED",$D$7:D61,$A$7:A61,"",0,-1)),A61-6) -> 2 | F61: BET | G61: BLACK | H61: FAIL | I61: 5 | J61: 0 | K61: 310 | L61: STOP | M61: 100 | N61: 2
A62: =ROW() -> 62 | B62: 34 | C62: =_xlfn.XLOOKUP(B62,AUX!$A:$A,AUX!$B:$B,"",0,1) -> BLACK | D62: =IF(C62=0,INDEX($C:$C,MAX(_xlfn.XLOOKUP("BLACK",$C$7:C62,$A$7:A62,"",0,-1),_xlfn.XLOOKUP("RED",$C$7:C62,$A$7:A62,"",0,-1)),1),C62) -> BLACK | E62: =IF(AND(COUNTIF($D$7:D62,"RED")>0,COUNTIF($D$7:D62,"BLACK")>0),A62-MIN(_xlfn.XLOOKUP("BLACK",$D$7:D62,$A$7:A62,"",0,-1),_xlfn.XLOOKUP("RED",$D$7:D62,$A$7:A62,"",0,-1)),A62-6) -> 1 | K62: 310 | M62: 50
A63: =ROW() -> 63 | B63: 10 | C63: =_xlfn.XLOOKUP(B63,AUX!$A:$A,AUX!$B:$B,"",0,1) -> BLACK | D63: =IF(C63=0,INDEX($C:$C,MAX(_xlfn.XLOOKUP("BLACK",$C$7:C63,$A$7:A63,"",0,-1),_xlfn.XLOOKUP("RED",$C$7:C63,$A$7:A63,"",0,-1)),1),C63) -> BLACK | E63: =IF(AND(COUNTIF($D$7:D63,"RED")>0,COUNTIF($D$7:D63,"BLACK")>0),A63-MIN(_xlfn.XLOOKUP("BLACK",$D$7:D63,$A$7:A63,"",0,-1),_xlfn.XLOOKUP("RED",$D$7:D63,$A$7:A63,"",0,-1)),A63-6) -> 2 | F63: BET | G63: RED | H63: FAIL | I63: 5 | J63: 0 | K63: 305 | L63: STOP | M63: 100 | N63: 2
A64: =ROW() -> 64 | B64: 9 | C64: =_xlfn.XLOOKUP(B64,AUX!$A:$A,AUX!$B:$B,"",0,1) -> RED | D64: =IF(C64=0,INDEX($C:$C,MAX(_xlfn.XLOOKUP("BLACK",$C$7:C64,$A$7:A64,"",0,-1),_xlfn.XLOOKUP("RED",$C$7:C64,$A$7:A64,"",0,-1)),1),C64) -> RED | E64: =IF(AND(COUNTIF($D$7:D64,"RED")>0,COUNTIF($D$7:D64,"BLACK")>0),A64-MIN(_xlfn.XLOOKUP("BLACK",$D$7:D64,$A$7:A64,"",0,-1),_xlfn.XLOOKUP("RED",$D$7:D64,$A$7:A64,"",0,-1)),A64-6) -> 1 | K64: 305 | M64: 50
A65: =ROW() -> 65 | B65: 11 | C65: =_xlfn.XLOOKUP(B65,AUX!$A:$A,AUX!$B:$B,"",0,1) -> RED | D65: =IF(C65=0,INDEX($C:$C,MAX(_xlfn.XLOOKUP("BLACK",$C$7:C65,$A$7:A65,"",0,-1),_xlfn.XLOOKUP("RED",$C$7:C65,$A$7:A65,"",0,-1)),1),C65) -> RED | E65: =IF(AND(COUNTIF($D$7:D65,"RED")>0,COUNTIF($D$7:D65,"BLACK")>0),A65-MIN(_xlfn.XLOOKUP("BLACK",$D$7:D65,$A$7:A65,"",0,-1),_xlfn.XLOOKUP("RED",$D$7:D65,$A$7:A65,"",0,-1)),A65-6) -> 2 | F65: BET | G65: BLACK | H65: FAIL | I65: 5 | J65: 0 | K65: 300 | L65: STOP | M65: 100
A66: =ROW() -> 66 | B66: 25 | C66: =_xlfn.XLOOKUP(B66,AUX!$A:$A,AUX!$B:$B,"",0,1) -> RED | D66: =IF(C66=0,INDEX($C:$C,MAX(_xlfn.XLOOKUP("BLACK",$C$7:C66,$A$7:A66,"",0,-1),_xlfn.XLOOKUP("RED",$C$7:C66,$A$7:A66,"",0,-1)),1),C66) -> RED | E66: =IF(AND(COUNTIF($D$7:D66,"RED")>0,COUNTIF($D$7:D66,"BLACK")>0),A66-MIN(_xlfn.XLOOKUP("BLACK",$D$7:D66,$A$7:A66,"",0,-1),_xlfn.XLOOKUP("RED",$D$7:D66,$A$7:A66,"",0,-1)),A66-6) -> 3 | K66: 300 | L66: STOP | M66: 150 | N66: 3
A67: =ROW() -> 67 | B67: 22 | C67: =_xlfn.XLOOKUP(B67,AUX!$A:$A,AUX!$B:$B,"",0,1) -> BLACK | D67: =IF(C67=0,INDEX($C:$C,MAX(_xlfn.XLOOKUP("BLACK",$C$7:C67,$A$7:A67,"",0,-1),_xlfn.XLOOKUP("RED",$C$7:C67,$A$7:A67,"",0,-1)),1),C67) -> BLACK | E67: =IF(AND(COUNTIF($D$7:D67,"RED")>0,COUNTIF($D$7:D67,"BLACK")>0),A67-MIN(_xlfn.XLOOKUP("BLACK",$D$7:D67,$A$7:A67,"",0,-1),_xlfn.XLOOKUP("RED",$D$7:D67,$A$7:A67,"",0,-1)),A67-6) -> 1 | K67: 300 | M67: 50
A68: =ROW() -> 68 | B68: 4 | C68: =_xlfn.XLOOKUP(B68,AUX!$A:$A,AUX!$B:$B,"",0,1) -> BLACK | D68: =IF(C68=0,INDEX($C:$C,MAX(_xlfn.XLOOKUP("BLACK",$C$7:C68,$A$7:A68,"",0,-1),_xlfn.XLOOKUP("RED",$C$7:C68,$A$7:A68,"",0,-1)),1),C68) -> BLACK | E68: =IF(AND(COUNTIF($D$7:D68,"RED")>0,COUNTIF($D$7:D68,"BLACK")>0),A68-MIN(_xlfn.XLOOKUP("BLACK",$D$7:D68,$A$7:A68,"",0,-1),_xlfn.XLOOKUP("RED",$D$7:D68,$A$7:A68,"",0,-1)),A68-6) -> 2 | F68: BET | G68: RED | H68: FAIL | I68: 5 | J68: 0 | K68: 295 | L68: STOP | M68: 100
A69: =ROW() -> 69 | B69: 14 | C69: =_xlfn.XLOOKUP(B69,AUX!$A:$A,AUX!$B:$B,"",0,1) -> BLACK | D69: =IF(C69=0,INDEX($C:$C,MAX(_xlfn.XLOOKUP("BLACK",$C$7:C69,$A$7:A69,"",0,-1),_xlfn.XLOOKUP("RED",$C$7:C69,$A$7:A69,"",0,-1)),1),C69) -> BLACK | E69: =IF(AND(COUNTIF($D$7:D69,"RED")>0,COUNTIF($D$7:D69,"BLACK")>0),A69-MIN(_xlfn.XLOOKUP("BLACK",$D$7:D69,$A$7:A69,"",0,-1),_xlfn.XLOOKUP("RED",$D$7:D69,$A$7:A69,"",0,-1)),A69-6) -> 3 | K69: 295 | L69: STOP | M69: 150 | N69: 3
A70: =ROW() -> 70 | B70: 27 | C70: =_xlfn.XLOOKUP(B70,AUX!$A:$A,AUX!$B:$B,"",0,1) -> RED | D70: =IF(C70=0,INDEX($C:$C,MAX(_xlfn.XLOOKUP("BLACK",$C$7:C70,$A$7:A70,"",0,-1),_xlfn.XLOOKUP("RED",$C$7:C70,$A$7:A70,"",0,-1)),1),C70) -> RED | E70: =IF(AND(COUNTIF($D$7:D70,"RED")>0,COUNTIF($D$7:D70,"BLACK")>0),A70-MIN(_xlfn.XLOOKUP("BLACK",$D$7:D70,$A$7:A70,"",0,-1),_xlfn.XLOOKUP("RED",$D$7:D70,$A$7:A70,"",0,-1)),A70-6) -> 1 | K70: 295 | M70: 50
A71: =ROW() -> 71 | B71: 29 | C71: =_xlfn.XLOOKUP(B71,AUX!$A:$A,AUX!$B:$B,"",0,1) -> RED | D71: =IF(C71=0,INDEX($C:$C,MAX(_xlfn.XLOOKUP("BLACK",$C$7:C71,$A$7:A71,"",0,-1),_xlfn.XLOOKUP("RED",$C$7:C71,$A$7:A71,"",0,-1)),1),C71) -> RED | E71: =IF(AND(COUNTIF($D$7:D71,"RED")>0,COUNTIF($D$7:D71,"BLACK")>0),A71-MIN(_xlfn.XLOOKUP("BLACK",$D$7:D71,$A$7:A71,"",0,-1),_xlfn.XLOOKUP("RED",$D$7:D71,$A$7:A71,"",0,-1)),A71-6) -> 2 | F71: BET | G71: BLACK | H71: FAIL | I71: 5 | J71: 0 | K71: 290 | L71: STOP | M71: 100 | N71: 2
A72: =ROW() -> 72 | B72: =RANDBETWEEN(0,36) -> 16 | C72: =_xlfn.XLOOKUP(B72,AUX!$A:$A,AUX!$B:$B,"",0,1) -> BLACK | D72: =IF(C72=0,INDEX($C:$C,MAX(_xlfn.XLOOKUP("BLACK",$C$7:C72,$A$7:A72,"",0,-1),_xlfn.XLOOKUP("RED",$C$7:C72,$A$7:A72,"",0,-1)),1),C72) -> BLACK | E72: =IF(AND(COUNTIF($D$7:D72,"RED")>0,COUNTIF($D$7:D72,"BLACK")>0),A72-MIN(_xlfn.XLOOKUP("BLACK",$D$7:D72,$A$7:A72,"",0,-1),_xlfn.XLOOKUP("RED",$D$7:D72,$A$7:A72,"",0,-1)),A72-6) -> 1 | J72: =IF(F72="BET",IF(H72="SUCCESS",I72*2,0),"") ->  | K72: =IF(F72="BET",K71-I72+J72,K71) -> 290 | L72: =IF(OR(AND(H72="FAIL",I72=$G$4),AND(L71="STOP",E72>$E$3)),"STOP","") ->  | M72: 50 | N72: =IF(E73<=E72,E72,"") -> 
A73: =ROW() -> 73 | B73: 36 | C73: =_xlfn.XLOOKUP(B73,AUX!$A:$A,AUX!$B:$B,"",0,1) -> BLACK | D73: =IF(C73=0,INDEX($C:$C,MAX(_xlfn.XLOOKUP("BLACK",$C$7:C73,$A$7:A73,"",0,-1),_xlfn.XLOOKUP("RED",$C$7:C73,$A$7:A73,"",0,-1)),1),C73) -> BLACK | E73: =IF(AND(COUNTIF($D$7:D73,"RED")>0,COUNTIF($D$7:D73,"BLACK")>0),A73-MIN(_xlfn.XLOOKUP("BLACK",$D$7:D73,$A$7:A73,"",0,-1),_xlfn.XLOOKUP("RED",$D$7:D73,$A$7:A73,"",0,-1)),A73-6) -> 2 | F73: =IF(AND(E72>=$E$3,L72=""),"BET","") -> BET | G73: =IF(F73="BET",IF(D72="RED","BLACK",IF(D72="BLACK","RED","ERROR")),"") -> RED | H73: =IF(F73="BET",IF(D73=G73,"SUCCESS","FAIL"),"") -> FAIL | I73: =IF(F73="BET",IF(OR(I72>=$G$4,F72=""),$F$3,IF(AND(F72="BET",H72="FAIL"),I72*2,$F$3)),"") -> 5 | J73: 0 | K73: 285 | L73: STOP | M73: =E73*50 -> 100
A74: =ROW() -> 74 | B74: 22 | C74: =_xlfn.XLOOKUP(B74,AUX!$A:$A,AUX!$B:$B,"",0,1) -> BLACK | D74: =IF(C74=0,INDEX($C:$C,MAX(_xlfn.XLOOKUP("BLACK",$C$7:C74,$A$7:A74,"",0,-1),_xlfn.XLOOKUP("RED",$C$7:C74,$A$7:A74,"",0,-1)),1),C74) -> BLACK | E74: =IF(AND(COUNTIF($D$7:D74,"RED")>0,COUNTIF($D$7:D74,"BLACK")>0),A74-MIN(_xlfn.XLOOKUP("BLACK",$D$7:D74,$A$7:A74,"",0,-1),_xlfn.XLOOKUP("RED",$D$7:D74,$A$7:A74,"",0,-1)),A74-6) -> 3 | K74: 285 | L74: STOP | M74: 150
A75: =ROW() -> 75 | B75: 16 | C75: =_xlfn.XLOOKUP(B75,AUX!$A:$A,AUX!$B:$B,"",0,1) -> BLACK | D75: =IF(C75=0,INDEX($C:$C,MAX(_xlfn.XLOOKUP("BLACK",$C$7:C75,$A$7:A75,"",0,-1),_xlfn.XLOOKUP("RED",$C$7:C75,$A$7:A75,"",0,-1)),1),C75) -> BLACK | E75: =IF(AND(COUNTIF($D$7:D75,"RED")>0,COUNTIF($D$7:D75,"BLACK")>0),A75-MIN(_xlfn.XLOOKUP("BLACK",$D$7:D75,$A$7:A75,"",0,-1),_xlfn.XLOOKUP("RED",$D$7:D75,$A$7:A75,"",0,-1)),A75-6) -> 4 | K75: 285 | L75: STOP | M75: 200 | N75: 4
A76: =ROW() -> 76 | B76: 35 | C76: =_xlfn.XLOOKUP(B76,AUX!$A:$A,AUX!$B:$B,"",0,1) -> RED | D76: =IF(C76=0,INDEX($C:$C,MAX(_xlfn.XLOOKUP("BLACK",$C$7:C76,$A$7:A76,"",0,-1),_xlfn.XLOOKUP("RED",$C$7:C76,$A$7:A76,"",0,-1)),1),C76) -> RED | E76: =IF(AND(COUNTIF($D$7:D76,"RED")>0,COUNTIF($D$7:D76,"BLACK")>0),A76-MIN(_xlfn.XLOOKUP("BLACK",$D$7:D76,$A$7:A76,"",0,-1),_xlfn.XLOOKUP("RED",$D$7:D76,$A$7:A76,"",0,-1)),A76-6) -> 1 | K76: 285 | M76: 50
A77: =ROW() -> 77 | B77: 19 | C77: =_xlfn.XLOOKUP(B77,AUX!$A:$A,AUX!$B:$B,"",0,1) -> RED | D77: =IF(C77=0,INDEX($C:$C,MAX(_xlfn.XLOOKUP("BLACK",$C$7:C77,$A$7:A77,"",0,-1),_xlfn.XLOOKUP("RED",$C$7:C77,$A$7:A77,"",0,-1)),1),C77) -> RED | E77: =IF(AND(COUNTIF($D$7:D77,"RED")>0,COUNTIF($D$7:D77,"BLACK")>0),A77-MIN(_xlfn.XLOOKUP("BLACK",$D$7:D77,$A$7:A77,"",0,-1),_xlfn.XLOOKUP("RED",$D$7:D77,$A$7:A77,"",0,-1)),A77-6) -> 2 | F77: BET | G77: BLACK | H77: FAIL | I77: 5 | J77: 0 | K77: 280 | L77: STOP | M77: 100 | N77: 2
A78: =ROW() -> 78 | B78: 30 | C78: =_xlfn.XLOOKUP(B78,AUX!$A:$A,AUX!$B:$B,"",0,1) -> BLACK | D78: =IF(C78=0,INDEX($C:$C,MAX(_xlfn.XLOOKUP("BLACK",$C$7:C78,$A$7:A78,"",0,-1),_xlfn.XLOOKUP("RED",$C$7:C78,$A$7:A78,"",0,-1)),1),C78) -> BLACK | E78: =IF(AND(COUNTIF($D$7:D78,"RED")>0,COUNTIF($D$7:D78,"BLACK")>0),A78-MIN(_xlfn.XLOOKUP("BLACK",$D$7:D78,$A$7:A78,"",0,-1),_xlfn.XLOOKUP("RED",$D$7:D78,$A$7:A78,"",0,-1)),A78-6) -> 1 | K78: 280 | M78: 50 | N78: 1
A79: =ROW() -> 79 | B79: 11 | C79: =_xlfn.XLOOKUP(B79,AUX!$A:$A,AUX!$B:$B,"",0,1) -> RED | D79: =IF(C79=0,INDEX($C:$C,MAX(_xlfn.XLOOKUP("BLACK",$C$7:C79,$A$7:A79,"",0,-1),_xlfn.XLOOKUP("RED",$C$7:C79,$A$7:A79,"",0,-1)),1),C79) -> RED | E79: =IF(AND(COUNTIF($D$7:D79,"RED")>0,COUNTIF($D$7:D79,"BLACK")>0),A79-MIN(_xlfn.XLOOKUP("BLACK",$D$7:D79,$A$7:A79,"",0,-1),_xlfn.XLOOKUP("RED",$D$7:D79,$A$7:A79,"",0,-1)),A79-6) -> 1 | F79: BET | G79: RED | H79: SUCCESS | I79: 5 | J79: 10 | K79: 285 | M79: 50 | N79: 1
A80: =ROW() -> 80 | B80: 32 | C80: =_xlfn.XLOOKUP(B80,AUX!$A:$A,AUX!$B:$B,"",0,1) -> BLACK | D80: =IF(C80=0,INDEX($C:$C,MAX(_xlfn.XLOOKUP("BLACK",$C$7:C80,$A$7:A80,"",0,-1),_xlfn.XLOOKUP("RED",$C$7:C80,$A$7:A80,"",0,-1)),1),C80) -> BLACK | E80: =IF(AND(COUNTIF($D$7:D80,"RED")>0,COUNTIF($D$7:D80,"BLACK")>0),A80-MIN(_xlfn.XLOOKUP("BLACK",$D$7:D80,$A$7:A80,"",0,-1),_xlfn.XLOOKUP("RED",$D$7:D80,$A$7:A80,"",0,-1)),A80-6) -> 1 | F80: BET | G80: BLACK | H80: SUCCESS | I80: 5 | J80: 10 | K80: 290 | M80: 50
A81: =ROW() -> 81 | B81: 8 | C81: =_xlfn.XLOOKUP(B81,AUX!$A:$A,AUX!$B:$B,"",0,1) -> BLACK | D81: =IF(C81=0,INDEX($C:$C,MAX(_xlfn.XLOOKUP("BLACK",$C$7:C81,$A$7:A81,"",0,-1),_xlfn.XLOOKUP("RED",$C$7:C81,$A$7:A81,"",0,-1)),1),C81) -> BLACK | E81: =IF(AND(COUNTIF($D$7:D81,"RED")>0,COUNTIF($D$7:D81,"BLACK")>0),A81-MIN(_xlfn.XLOOKUP("BLACK",$D$7:D81,$A$7:A81,"",0,-1),_xlfn.XLOOKUP("RED",$D$7:D81,$A$7:A81,"",0,-1)),A81-6) -> 2 | F81: BET | G81: RED | H81: FAIL | I81: 5 | J81: 0 | K81: 285 | L81: STOP | M81: 100 | N81: 2
A82: =ROW() -> 82 | B82: 3 | C82: =_xlfn.XLOOKUP(B82,AUX!$A:$A,AUX!$B:$B,"",0,1) -> RED | D82: =IF(C82=0,INDEX($C:$C,MAX(_xlfn.XLOOKUP("BLACK",$C$7:C82,$A$7:A82,"",0,-1),_xlfn.XLOOKUP("RED",$C$7:C82,$A$7:A82,"",0,-1)),1),C82) -> RED | E82: =IF(AND(COUNTIF($D$7:D82,"RED")>0,COUNTIF($D$7:D82,"BLACK")>0),A82-MIN(_xlfn.XLOOKUP("BLACK",$D$7:D82,$A$7:A82,"",0,-1),_xlfn.XLOOKUP("RED",$D$7:D82,$A$7:A82,"",0,-1)),A82-6) -> 1 | K82: 285 | M82: 50
A83: =ROW() -> 83 | B83: 25 | C83: =_xlfn.XLOOKUP(B83,AUX!$A:$A,AUX!$B:$B,"",0,1) -> RED | D83: =IF(C83=0,INDEX($C:$C,MAX(_xlfn.XLOOKUP("BLACK",$C$7:C83,$A$7:A83,"",0,-1),_xlfn.XLOOKUP("RED",$C$7:C83,$A$7:A83,"",0,-1)),1),C83) -> RED | E83: =IF(AND(COUNTIF($D$7:D83,"RED")>0,COUNTIF($D$7:D83,"BLACK")>0),A83-MIN(_xlfn.XLOOKUP("BLACK",$D$7:D83,$A$7:A83,"",0,-1),_xlfn.XLOOKUP("RED",$D$7:D83,$A$7:A83,"",0,-1)),A83-6) -> 2 | F83: BET | G83: BLACK | H83: FAIL | I83: 5 | J83: 0 | K83: 280 | L83: STOP | M83: 100
A84: =ROW() -> 84 | B84: 21 | C84: =_xlfn.XLOOKUP(B84,AUX!$A:$A,AUX!$B:$B,"",0,1) -> RED | D84: =IF(C84=0,INDEX($C:$C,MAX(_xlfn.XLOOKUP("BLACK",$C$7:C84,$A$7:A84,"",0,-1),_xlfn.XLOOKUP("RED",$C$7:C84,$A$7:A84,"",0,-1)),1),C84) -> RED | E84: =IF(AND(COUNTIF($D$7:D84,"RED")>0,COUNTIF($D$7:D84,"BLACK")>0),A84-MIN(_xlfn.XLOOKUP("BLACK",$D$7:D84,$A$7:A84,"",0,-1),_xlfn.XLOOKUP("RED",$D$7:D84,$A$7:A84,"",0,-1)),A84-6) -> 3 | K84: 280 | L84: STOP | M84: 150
A85: =ROW() -> 85 | B85: 0 | C85: =_xlfn.XLOOKUP(B85,AUX!$A:$A,AUX!$B:$B,"",0,1) -> 0 | D85: =IF(C85=0,INDEX($C:$C,MAX(_xlfn.XLOOKUP("BLACK",$C$7:C85,$A$7:A85,"",0,-1),_xlfn.XLOOKUP("RED",$C$7:C85,$A$7:A85,"",0,-1)),1),C85) -> RED | E85: =IF(AND(COUNTIF($D$7:D85,"RED")>0,COUNTIF($D$7:D85,"BLACK")>0),A85-MIN(_xlfn.XLOOKUP("BLACK",$D$7:D85,$A$7:A85,"",0,-1),_xlfn.XLOOKUP("RED",$D$7:D85,$A$7:A85,"",0,-1)),A85-6) -> 4 | K85: 280 | L85: STOP | M85: 200
A86: =ROW() -> 86 | B86: 13 | C86: =_xlfn.XLOOKUP(B86,AUX!$A:$A,AUX!$B:$B,"",0,1) -> RED | D86: =IF(C86=0,INDEX($C:$C,MAX(_xlfn.XLOOKUP("BLACK",$C$7:C86,$A$7:A86,"",0,-1),_xlfn.XLOOKUP("RED",$C$7:C86,$A$7:A86,"",0,-1)),1),C86) -> RED | E86: =IF(AND(COUNTIF($D$7:D86,"RED")>0,COUNTIF($D$7:D86,"BLACK")>0),A86-MIN(_xlfn.XLOOKUP("BLACK",$D$7:D86,$A$7:A86,"",0,-1),_xlfn.XLOOKUP("RED",$D$7:D86,$A$7:A86,"",0,-1)),A86-6) -> 5 | K86: 280 | L86: STOP | M86: 250 | N86: 5
A87: =ROW() -> 87 | B87: 10 | C87: =_xlfn.XLOOKUP(B87,AUX!$A:$A,AUX!$B:$B,"",0,1) -> BLACK | D87: =IF(C87=0,INDEX($C:$C,MAX(_xlfn.XLOOKUP("BLACK",$C$7:C87,$A$7:A87,"",0,-1),_xlfn.XLOOKUP("RED",$C$7:C87,$A$7:A87,"",0,-1)),1),C87) -> BLACK | E87: =IF(AND(COUNTIF($D$7:D87,"RED")>0,COUNTIF($D$7:D87,"BLACK")>0),A87-MIN(_xlfn.XLOOKUP("BLACK",$D$7:D87,$A$7:A87,"",0,-1),_xlfn.XLOOKUP("RED",$D$7:D87,$A$7:A87,"",0,-1)),A87-6) -> 1 | K87: 280 | M87: 50
A88: =ROW() -> 88 | B88: 8 | C88: =_xlfn.XLOOKUP(B88,AUX!$A:$A,AUX!$B:$B,"",0,1) -> BLACK | D88: =IF(C88=0,INDEX($C:$C,MAX(_xlfn.XLOOKUP("BLACK",$C$7:C88,$A$7:A88,"",0,-1),_xlfn.XLOOKUP("RED",$C$7:C88,$A$7:A88,"",0,-1)),1),C88) -> BLACK | E88: =IF(AND(COUNTIF($D$7:D88,"RED")>0,COUNTIF($D$7:D88,"BLACK")>0),A88-MIN(_xlfn.XLOOKUP("BLACK",$D$7:D88,$A$7:A88,"",0,-1),_xlfn.XLOOKUP("RED",$D$7:D88,$A$7:A88,"",0,-1)),A88-6) -> 2 | F88: BET | G88: RED | H88: FAIL | I88: 5 | J88: 0 | K88: 275 | L88: STOP | M88: 100
A89: =ROW() -> 89 | B89: 22 | C89: =_xlfn.XLOOKUP(B89,AUX!$A:$A,AUX!$B:$B,"",0,1) -> BLACK | D89: =IF(C89=0,INDEX($C:$C,MAX(_xlfn.XLOOKUP("BLACK",$C$7:C89,$A$7:A89,"",0,-1),_xlfn.XLOOKUP("RED",$C$7:C89,$A$7:A89,"",0,-1)),1),C89) -> BLACK | E89: =IF(AND(COUNTIF($D$7:D89,"RED")>0,COUNTIF($D$7:D89,"BLACK")>0),A89-MIN(_xlfn.XLOOKUP("BLACK",$D$7:D89,$A$7:A89,"",0,-1),_xlfn.XLOOKUP("RED",$D$7:D89,$A$7:A89,"",0,-1)),A89-6) -> 3 | K89: 275 | L89: STOP | M89: 150
A90: =ROW() -> 90 | B90: 34 | C90: =_xlfn.XLOOKUP(B90,AUX!$A:$A,AUX!$B:$B,"",0,1) -> BLACK | D90: =IF(C90=0,INDEX($C:$C,MAX(_xlfn.XLOOKUP("BLACK",$C$7:C90,$A$7:A90,"",0,-1),_xlfn.XLOOKUP("RED",$C$7:C90,$A$7:A90,"",0,-1)),1),C90) -> BLACK | E90: =IF(AND(COUNTIF($D$7:D90,"RED")>0,COUNTIF($D$7:D90,"BLACK")>0),A90-MIN(_xlfn.XLOOKUP("BLACK",$D$7:D90,$A$7:A90,"",0,-1),_xlfn.XLOOKUP("RED",$D$7:D90,$A$7:A90,"",0,-1)),A90-6) -> 4 | K90: 275 | L90: STOP | M90: 200
A91: =ROW() -> 91 | B91: 18 | C91: =_xlfn.XLOOKUP(B91,AUX!$A:$A,AUX!$B:$B,"",0,1) -> BLACK | D91: =IF(C91=0,INDEX($C:$C,MAX(_xlfn.XLOOKUP("BLACK",$C$7:C91,$A$7:A91,"",0,-1),_xlfn.XLOOKUP("RED",$C$7:C91,$A$7:A91,"",0,-1)),1),C91) -> BLACK | E91: =IF(AND(COUNTIF($D$7:D91,"RED")>0,COUNTIF($D$7:D91,"BLACK")>0),A91-MIN(_xlfn.XLOOKUP("BLACK",$D$7:D91,$A$7:A91,"",0,-1),_xlfn.XLOOKUP("RED",$D$7:D91,$A$7:A91,"",0,-1)),A91-6) -> 5 | K91: 275 | L91: STOP | M91: 250 | N91: 5
A92: =ROW() -> 92 | B92: 9 | C92: =_xlfn.XLOOKUP(B92,AUX!$A:$A,AUX!$B:$B,"",0,1) -> RED | D92: =IF(C92=0,INDEX($C:$C,MAX(_xlfn.XLOOKUP("BLACK",$C$7:C92,$A$7:A92,"",0,-1),_xlfn.XLOOKUP("RED",$C$7:C92,$A$7:A92,"",0,-1)),1),C92) -> RED | E92: =IF(AND(COUNTIF($D$7:D92,"RED")>0,COUNTIF($D$7:D92,"BLACK")>0),A92-MIN(_xlfn.XLOOKUP("BLACK",$D$7:D92,$A$7:A92,"",0,-1),_xlfn.XLOOKUP("RED",$D$7:D92,$A$7:A92,"",0,-1)),A92-6) -> 1 | K92: 275 | M92: 50
A93: =ROW() -> 93 | B93: 29 | C93: =_xlfn.XLOOKUP(B93,AUX!$A:$A,AUX!$B:$B,"",0,1) -> RED | D93: =IF(C93=0,INDEX($C:$C,MAX(_xlfn.XLOOKUP("BLACK",$C$7:C93,$A$7:A93,"",0,-1),_xlfn.XLOOKUP("RED",$C$7:C93,$A$7:A93,"",0,-1)),1),C93) -> RED | E93: =IF(AND(COUNTIF($D$7:D93,"RED")>0,COUNTIF($D$7:D93,"BLACK")>0),A93-MIN(_xlfn.XLOOKUP("BLACK",$D$7:D93,$A$7:A93,"",0,-1),_xlfn.XLOOKUP("RED",$D$7:D93,$A$7:A93,"",0,-1)),A93-6) -> 2 | F93: BET | G93: BLACK | H93: FAIL | I93: 5 | J93: 0 | K93: 270 | L93: STOP | M93: 100
A94: =ROW() -> 94 | B94: 33 | C94: =_xlfn.XLOOKUP(B94,AUX!$A:$A,AUX!$B:$B,"",0,1) -> RED | D94: =IF(C94=0,INDEX($C:$C,MAX(_xlfn.XLOOKUP("BLACK",$C$7:C94,$A$7:A94,"",0,-1),_xlfn.XLOOKUP("RED",$C$7:C94,$A$7:A94,"",0,-1)),1),C94) -> RED | E94: =IF(AND(COUNTIF($D$7:D94,"RED")>0,COUNTIF($D$7:D94,"BLACK")>0),A94-MIN(_xlfn.XLOOKUP("BLACK",$D$7:D94,$A$7:A94,"",0,-1),_xlfn.XLOOKUP("RED",$D$7:D94,$A$7:A94,"",0,-1)),A94-6) -> 3 | K94: 270 | L94: STOP | M94: 150 | N94: 3
A95: =ROW() -> 95 | B95: 20 | C95: =_xlfn.XLOOKUP(B95,AUX!$A:$A,AUX!$B:$B,"",0,1) -> BLACK | D95: =IF(C95=0,INDEX($C:$C,MAX(_xlfn.XLOOKUP("BLACK",$C$7:C95,$A$7:A95,"",0,-1),_xlfn.XLOOKUP("RED",$C$7:C95,$A$7:A95,"",0,-1)),1),C95) -> BLACK | E95: =IF(AND(COUNTIF($D$7:D95,"RED")>0,COUNTIF($D$7:D95,"BLACK")>0),A95-MIN(_xlfn.XLOOKUP("BLACK",$D$7:D95,$A$7:A95,"",0,-1),_xlfn.XLOOKUP("RED",$D$7:D95,$A$7:A95,"",0,-1)),A95-6) -> 1 | K95: 270 | M95: 50 | N95: 1
A96: =ROW() -> 96 | B96: 25 | C96: =_xlfn.XLOOKUP(B96,AUX!$A:$A,AUX!$B:$B,"",0,1) -> RED | D96: =IF(C96=0,INDEX($C:$C,MAX(_xlfn.XLOOKUP("BLACK",$C$7:C96,$A$7:A96,"",0,-1),_xlfn.XLOOKUP("RED",$C$7:C96,$A$7:A96,"",0,-1)),1),C96) -> RED | E96: =IF(AND(COUNTIF($D$7:D96,"RED")>0,COUNTIF($D$7:D96,"BLACK")>0),A96-MIN(_xlfn.XLOOKUP("BLACK",$D$7:D96,$A$7:A96,"",0,-1),_xlfn.XLOOKUP("RED",$D$7:D96,$A$7:A96,"",0,-1)),A96-6) -> 1 | F96: BET | G96: RED | H96: SUCCESS | I96: 5 | J96: 10 | K96: 275 | M96: 50 | N96: 1
A97: =ROW() -> 97 | B97: 14 | C97: =_xlfn.XLOOKUP(B97,AUX!$A:$A,AUX!$B:$B,"",0,1) -> BLACK | D97: =IF(C97=0,INDEX($C:$C,MAX(_xlfn.XLOOKUP("BLACK",$C$7:C97,$A$7:A97,"",0,-1),_xlfn.XLOOKUP("RED",$C$7:C97,$A$7:A97,"",0,-1)),1),C97) -> BLACK | E97: =IF(AND(COUNTIF($D$7:D97,"RED")>0,COUNTIF($D$7:D97,"BLACK")>0),A97-MIN(_xlfn.XLOOKUP("BLACK",$D$7:D97,$A$7:A97,"",0,-1),_xlfn.XLOOKUP("RED",$D$7:D97,$A$7:A97,"",0,-1)),A97-6) -> 1 | F97: BET | G97: BLACK | H97: SUCCESS | I97: 5 | J97: 10 | K97: 280 | M97: 50
A98: =ROW() -> 98 | B98: 10 | C98: =_xlfn.XLOOKUP(B98,AUX!$A:$A,AUX!$B:$B,"",0,1) -> BLACK | D98: =IF(C98=0,INDEX($C:$C,MAX(_xlfn.XLOOKUP("BLACK",$C$7:C98,$A$7:A98,"",0,-1),_xlfn.XLOOKUP("RED",$C$7:C98,$A$7:A98,"",0,-1)),1),C98) -> BLACK | E98: =IF(AND(COUNTIF($D$7:D98,"RED")>0,COUNTIF($D$7:D98,"BLACK")>0),A98-MIN(_xlfn.XLOOKUP("BLACK",$D$7:D98,$A$7:A98,"",0,-1),_xlfn.XLOOKUP("RED",$D$7:D98,$A$7:A98,"",0,-1)),A98-6) -> 2 | F98: BET | G98: RED | H98: FAIL | I98: 5 | J98: 0 | K98: 275 | L98: STOP | M98: 100
A99: =ROW() -> 99 | B99: 6 | C99: =_xlfn.XLOOKUP(B99,AUX!$A:$A,AUX!$B:$B,"",0,1) -> BLACK | D99: =IF(C99=0,INDEX($C:$C,MAX(_xlfn.XLOOKUP("BLACK",$C$7:C99,$A$7:A99,"",0,-1),_xlfn.XLOOKUP("RED",$C$7:C99,$A$7:A99,"",0,-1)),1),C99) -> BLACK | E99: =IF(AND(COUNTIF($D$7:D99,"RED")>0,COUNTIF($D$7:D99,"BLACK")>0),A99-MIN(_xlfn.XLOOKUP("BLACK",$D$7:D99,$A$7:A99,"",0,-1),_xlfn.XLOOKUP("RED",$D$7:D99,$A$7:A99,"",0,-1)),A99-6) -> 3 | K99: 275 | L99: STOP | M99: 150 | N99: 3
A100: =ROW() -> 100 | B100: 7 | C100: =_xlfn.XLOOKUP(B100,AUX!$A:$A,AUX!$B:$B,"",0,1) -> RED | D100: =IF(C100=0,INDEX($C:$C,MAX(_xlfn.XLOOKUP("BLACK",$C$7:C100,$A$7:A100,"",0,-1),_xlfn.XLOOKUP("RED",$C$7:C100,$A$7:A100,"",0,-1)),1),C100) -> RED | E100: =IF(AND(COUNTIF($D$7:D100,"RED")>0,COUNTIF($D$7:D100,"BLACK")>0),A100-MIN(_xlfn.XLOOKUP("BLACK",$D$7:D100,$A$7:A100,"",0,-1),_xlfn.XLOOKUP("RED",$D$7:D100,$A$7:A100,"",0,-1)),A100-6) -> 1 | K100: 275 | M100: 50
A101: =ROW() -> 101 | B101: 9 | C101: =_xlfn.XLOOKUP(B101,AUX!$A:$A,AUX!$B:$B,"",0,1) -> RED | D101: =IF(C101=0,INDEX($C:$C,MAX(_xlfn.XLOOKUP("BLACK",$C$7:C101,$A$7:A101,"",0,-1),_xlfn.XLOOKUP("RED",$C$7:C101,$A$7:A101,"",0,-1)),1),C101) -> RED | E101: =IF(AND(COUNTIF($D$7:D101,"RED")>0,COUNTIF($D$7:D101,"BLACK")>0),A101-MIN(_xlfn.XLOOKUP("BLACK",$D$7:D101,$A$7:A101,"",0,-1),_xlfn.XLOOKUP("RED",$D$7:D101,$A$7:A101,"",0,-1)),A101-6) -> 2 | F101: BET | G101: BLACK | H101: FAIL | I101: 5 | J101: 0 | K101: 270 | L101: STOP | M101: 100
A102: =ROW() -> 102 | B102: 27 | C102: =_xlfn.XLOOKUP(B102,AUX!$A:$A,AUX!$B:$B,"",0,1) -> RED | D102: =IF(C102=0,INDEX($C:$C,MAX(_xlfn.XLOOKUP("BLACK",$C$7:C102,$A$7:A102,"",0,-1),_xlfn.XLOOKUP("RED",$C$7:C102,$A$7:A102,"",0,-1)),1),C102) -> RED | E102: =IF(AND(COUNTIF($D$7:D102,"RED")>0,COUNTIF($D$7:D102,"BLACK")>0),A102-MIN(_xlfn.XLOOKUP("BLACK",$D$7:D102,$A$7:A102,"",0,-1),_xlfn.XLOOKUP("RED",$D$7:D102,$A$7:A102,"",0,-1)),A102-6) -> 3 | K102: 270 | L102: STOP | M102: 150
A103: =ROW() -> 103 | B103: 5 | C103: =_xlfn.XLOOKUP(B103,AUX!$A:$A,AUX!$B:$B,"",0,1) -> RED | D103: =IF(C103=0,INDEX($C:$C,MAX(_xlfn.XLOOKUP("BLACK",$C$7:C103,$A$7:A103,"",0,-1),_xlfn.XLOOKUP("RED",$C$7:C103,$A$7:A103,"",0,-1)),1),C103) -> RED | E103: =IF(AND(COUNTIF($D$7:D103,"RED")>0,COUNTIF($D$7:D103,"BLACK")>0),A103-MIN(_xlfn.XLOOKUP("BLACK",$D$7:D103,$A$7:A103,"",0,-1),_xlfn.XLOOKUP("RED",$D$7:D103,$A$7:A103,"",0,-1)),A103-6) -> 4 | K103: 270 | L103: STOP | M103: 200 | N103: 4
A104: =ROW() -> 104 | B104: 32 | C104: =_xlfn.XLOOKUP(B104,AUX!$A:$A,AUX!$B:$B,"",0,1) -> BLACK | D104: =IF(C104=0,INDEX($C:$C,MAX(_xlfn.XLOOKUP("BLACK",$C$7:C104,$A$7:A104,"",0,-1),_xlfn.XLOOKUP("RED",$C$7:C104,$A$7:A104,"",0,-1)),1),C104) -> BLACK | E104: =IF(AND(COUNTIF($D$7:D104,"RED")>0,COUNTIF($D$7:D104,"BLACK")>0),A104-MIN(_xlfn.XLOOKUP("BLACK",$D$7:D104,$A$7:A104,"",0,-1),_xlfn.XLOOKUP("RED",$D$7:D104,$A$7:A104,"",0,-1)),A104-6) -> 1 | K104: 270 | M104: 50 | N104: 1
A105: =ROW() -> 105 | B105: 33 | C105: =_xlfn.XLOOKUP(B105,AUX!$A:$A,AUX!$B:$B,"",0,1) -> RED | D105: =IF(C105=0,INDEX($C:$C,MAX(_xlfn.XLOOKUP("BLACK",$C$7:C105,$A$7:A105,"",0,-1),_xlfn.XLOOKUP("RED",$C$7:C105,$A$7:A105,"",0,-1)),1),C105) -> RED | E105: =IF(AND(COUNTIF($D$7:D105,"RED")>0,COUNTIF($D$7:D105,"BLACK")>0),A105-MIN(_xlfn.XLOOKUP("BLACK",$D$7:D105,$A$7:A105,"",0,-1),_xlfn.XLOOKUP("RED",$D$7:D105,$A$7:A105,"",0,-1)),A105-6) -> 1 | F105: BET | G105: RED | H105: SUCCESS | I105: 5 | J105: 10 | K105: 275 | M105: 50
A106: =ROW() -> 106 | B106: 21 | C106: =_xlfn.XLOOKUP(B106,AUX!$A:$A,AUX!$B:$B,"",0,1) -> RED | D106: =IF(C106=0,INDEX($C:$C,MAX(_xlfn.XLOOKUP("BLACK",$C$7:C106,$A$7:A106,"",0,-1),_xlfn.XLOOKUP("RED",$C$7:C106,$A$7:A106,"",0,-1)),1),C106) -> RED | E106: =IF(AND(COUNTIF($D$7:D106,"RED")>0,COUNTIF($D$7:D106,"BLACK")>0),A106-MIN(_xlfn.XLOOKUP("BLACK",$D$7:D106,$A$7:A106,"",0,-1),_xlfn.XLOOKUP("RED",$D$7:D106,$A$7:A106,"",0,-1)),A106-6) -> 2 | F106: BET | G106: BLACK | H106: FAIL | I106: 5 | J106: 0 | K106: 270 | L106: STOP | M106: 100 | N106: 2
A107: =ROW() -> 107 | B107: 28 | C107: =_xlfn.XLOOKUP(B107,AUX!$A:$A,AUX!$B:$B,"",0,1) -> BLACK | D107: =IF(C107=0,INDEX($C:$C,MAX(_xlfn.XLOOKUP("BLACK",$C$7:C107,$A$7:A107,"",0,-1),_xlfn.XLOOKUP("RED",$C$7:C107,$A$7:A107,"",0,-1)),1),C107) -> BLACK | E107: =IF(AND(COUNTIF($D$7:D107,"RED")>0,COUNTIF($D$7:D107,"BLACK")>0),A107-MIN(_xlfn.XLOOKUP("BLACK",$D$7:D107,$A$7:A107,"",0,-1),_xlfn.XLOOKUP("RED",$D$7:D107,$A$7:A107,"",0,-1)),A107-6) -> 1 | K107: 270 | M107: 50
A108: =ROW() -> 108 | B108: 10 | C108: =_xlfn.XLOOKUP(B108,AUX!$A:$A,AUX!$B:$B,"",0,1) -> BLACK | D108: =IF(C108=0,INDEX($C:$C,MAX(_xlfn.XLOOKUP("BLACK",$C$7:C108,$A$7:A108,"",0,-1),_xlfn.XLOOKUP("RED",$C$7:C108,$A$7:A108,"",0,-1)),1),C108) -> BLACK | E108: =IF(AND(COUNTIF($D$7:D108,"RED")>0,COUNTIF($D$7:D108,"BLACK")>0),A108-MIN(_xlfn.XLOOKUP("BLACK",$D$7:D108,$A$7:A108,"",0,-1),_xlfn.XLOOKUP("RED",$D$7:D108,$A$7:A108,"",0,-1)),A108-6) -> 2 | F108: BET | G108: RED | H108: FAIL | I108: 5 | J108: 0 | K108: 265 | L108: STOP | M108: 100
A109: =ROW() -> 109 | B109: 16 | C109: =_xlfn.XLOOKUP(B109,AUX!$A:$A,AUX!$B:$B,"",0,1) -> BLACK | D109: =IF(C109=0,INDEX($C:$C,MAX(_xlfn.XLOOKUP("BLACK",$C$7:C109,$A$7:A109,"",0,-1),_xlfn.XLOOKUP("RED",$C$7:C109,$A$7:A109,"",0,-1)),1),C109) -> BLACK | E109: =IF(AND(COUNTIF($D$7:D109,"RED")>0,COUNTIF($D$7:D109,"BLACK")>0),A109-MIN(_xlfn.XLOOKUP("BLACK",$D$7:D109,$A$7:A109,"",0,-1),_xlfn.XLOOKUP("RED",$D$7:D109,$A$7:A109,"",0,-1)),A109-6) -> 3 | K109: 265 | L109: STOP | M109: 150 | N109: 3
A110: =ROW() -> 110 | B110: 35 | C110: =_xlfn.XLOOKUP(B110,AUX!$A:$A,AUX!$B:$B,"",0,1) -> RED | D110: =IF(C110=0,INDEX($C:$C,MAX(_xlfn.XLOOKUP("BLACK",$C$7:C110,$A$7:A110,"",0,-1),_xlfn.XLOOKUP("RED",$C$7:C110,$A$7:A110,"",0,-1)),1),C110) -> RED | E110: =IF(AND(COUNTIF($D$7:D110,"RED")>0,COUNTIF($D$7:D110,"BLACK")>0),A110-MIN(_xlfn.XLOOKUP("BLACK",$D$7:D110,$A$7:A110,"",0,-1),_xlfn.XLOOKUP("RED",$D$7:D110,$A$7:A110,"",0,-1)),A110-6) -> 1 | K110: 265 | M110: 50
A111: =ROW() -> 111 | B111: 17 | C111: =_xlfn.XLOOKUP(B111,AUX!$A:$A,AUX!$B:$B,"",0,1) -> RED | D111: =IF(C111=0,INDEX($C:$C,MAX(_xlfn.XLOOKUP("BLACK",$C$7:C111,$A$7:A111,"",0,-1),_xlfn.XLOOKUP("RED",$C$7:C111,$A$7:A111,"",0,-1)),1),C111) -> RED | E111: =IF(AND(COUNTIF($D$7:D111,"RED")>0,COUNTIF($D$7:D111,"BLACK")>0),A111-MIN(_xlfn.XLOOKUP("BLACK",$D$7:D111,$A$7:A111,"",0,-1),_xlfn.XLOOKUP("RED",$D$7:D111,$A$7:A111,"",0,-1)),A111-6) -> 2 | F111: BET | G111: BLACK | H111: FAIL | I111: 5 | J111: 0 | K111: 260 | L111: STOP | M111: 100
A112: =ROW() -> 112 | B112: 7 | C112: =_xlfn.XLOOKUP(B112,AUX!$A:$A,AUX!$B:$B,"",0,1) -> RED | D112: =IF(C112=0,INDEX($C:$C,MAX(_xlfn.XLOOKUP("BLACK",$C$7:C112,$A$7:A112,"",0,-1),_xlfn.XLOOKUP("RED",$C$7:C112,$A$7:A112,"",0,-1)),1),C112) -> RED | E112: =IF(AND(COUNTIF($D$7:D112,"RED")>0,COUNTIF($D$7:D112,"BLACK")>0),A112-MIN(_xlfn.XLOOKUP("BLACK",$D$7:D112,$A$7:A112,"",0,-1),_xlfn.XLOOKUP("RED",$D$7:D112,$A$7:A112,"",0,-1)),A112-6) -> 3 | K112: 260 | L112: STOP | M112: 150
A113: =ROW() -> 113 | B113: 27 | C113: =_xlfn.XLOOKUP(B113,AUX!$A:$A,AUX!$B:$B,"",0,1) -> RED | D113: =IF(C113=0,INDEX($C:$C,MAX(_xlfn.XLOOKUP("BLACK",$C$7:C113,$A$7:A113,"",0,-1),_xlfn.XLOOKUP("RED",$C$7:C113,$A$7:A113,"",0,-1)),1),C113) -> RED | E113: =IF(AND(COUNTIF($D$7:D113,"RED")>0,COUNTIF($D$7:D113,"BLACK")>0),A113-MIN(_xlfn.XLOOKUP("BLACK",$D$7:D113,$A$7:A113,"",0,-1),_xlfn.XLOOKUP("RED",$D$7:D113,$A$7:A113,"",0,-1)),A113-6) -> 4 | K113: 260 | L113: STOP | M113: 200 | N113: 4
A114: =ROW() -> 114 | B114: 4 | C114: =_xlfn.XLOOKUP(B114,AUX!$A:$A,AUX!$B:$B,"",0,1) -> BLACK | D114: =IF(C114=0,INDEX($C:$C,MAX(_xlfn.XLOOKUP("BLACK",$C$7:C114,$A$7:A114,"",0,-1),_xlfn.XLOOKUP("RED",$C$7:C114,$A$7:A114,"",0,-1)),1),C114) -> BLACK | E114: =IF(AND(COUNTIF($D$7:D114,"RED")>0,COUNTIF($D$7:D114,"BLACK")>0),A114-MIN(_xlfn.XLOOKUP("BLACK",$D$7:D114,$A$7:A114,"",0,-1),_xlfn.XLOOKUP("RED",$D$7:D114,$A$7:A114,"",0,-1)),A114-6) -> 1 | K114: 260 | M114: 50 | N114: 1
A115: =ROW() -> 115 | B115: 13 | C115: =_xlfn.XLOOKUP(B115,AUX!$A:$A,AUX!$B:$B,"",0,1) -> RED | D115: =IF(C115=0,INDEX($C:$C,MAX(_xlfn.XLOOKUP("BLACK",$C$7:C115,$A$7:A115,"",0,-1),_xlfn.XLOOKUP("RED",$C$7:C115,$A$7:A115,"",0,-1)),1),C115) -> RED | E115: =IF(AND(COUNTIF($D$7:D115,"RED")>0,COUNTIF($D$7:D115,"BLACK")>0),A115-MIN(_xlfn.XLOOKUP("BLACK",$D$7:D115,$A$7:A115,"",0,-1),_xlfn.XLOOKUP("RED",$D$7:D115,$A$7:A115,"",0,-1)),A115-6) -> 1 | F115: BET | G115: RED | H115: SUCCESS | I115: 5 | J115: 10 | K115: 265 | M115: 50 | N115: 1
A116: =ROW() -> 116 | B116: 16 | C116: =_xlfn.XLOOKUP(B116,AUX!$A:$A,AUX!$B:$B,"",0,1) -> BLACK | D116: =IF(C116=0,INDEX($C:$C,MAX(_xlfn.XLOOKUP("BLACK",$C$7:C116,$A$7:A116,"",0,-1),_xlfn.XLOOKUP("RED",$C$7:C116,$A$7:A116,"",0,-1)),1),C116) -> BLACK | E116: =IF(AND(COUNTIF($D$7:D116,"RED")>0,COUNTIF($D$7:D116,"BLACK")>0),A116-MIN(_xlfn.XLOOKUP("BLACK",$D$7:D116,$A$7:A116,"",0,-1),_xlfn.XLOOKUP("RED",$D$7:D116,$A$7:A116,"",0,-1)),A116-6) -> 1 | F116: BET | G116: BLACK | H116: SUCCESS | I116: 5 | J116: 10 | K116: 270 | M116: 50 | N116: 1
A117: =ROW() -> 117 | B117: 1 | C117: =_xlfn.XLOOKUP(B117,AUX!$A:$A,AUX!$B:$B,"",0,1) -> RED | D117: =IF(C117=0,INDEX($C:$C,MAX(_xlfn.XLOOKUP("BLACK",$C$7:C117,$A$7:A117,"",0,-1),_xlfn.XLOOKUP("RED",$C$7:C117,$A$7:A117,"",0,-1)),1),C117) -> RED | E117: =IF(AND(COUNTIF($D$7:D117,"RED")>0,COUNTIF($D$7:D117,"BLACK")>0),A117-MIN(_xlfn.XLOOKUP("BLACK",$D$7:D117,$A$7:A117,"",0,-1),_xlfn.XLOOKUP("RED",$D$7:D117,$A$7:A117,"",0,-1)),A117-6) -> 1 | F117: BET | G117: RED | H117: SUCCESS | I117: 5 | J117: 10 | K117: 275 | M117: 50 | N117: 1
A118: =ROW() -> 118 | B118: 36 | C118: =_xlfn.XLOOKUP(B118,AUX!$A:$A,AUX!$B:$B,"",0,1) -> BLACK | D118: =IF(C118=0,INDEX($C:$C,MAX(_xlfn.XLOOKUP("BLACK",$C$7:C118,$A$7:A118,"",0,-1),_xlfn.XLOOKUP("RED",$C$7:C118,$A$7:A118,"",0,-1)),1),C118) -> BLACK | E118: =IF(AND(COUNTIF($D$7:D118,"RED")>0,COUNTIF($D$7:D118,"BLACK")>0),A118-MIN(_xlfn.XLOOKUP("BLACK",$D$7:D118,$A$7:A118,"",0,-1),_xlfn.XLOOKUP("RED",$D$7:D118,$A$7:A118,"",0,-1)),A118-6) -> 1 | F118: BET | G118: BLACK | H118: SUCCESS | I118: 5 | J118: 10 | K118: 280 | M118: 50 | N118: 1
A119: =ROW() -> 119 | B119: 35 | C119: =_xlfn.XLOOKUP(B119,AUX!$A:$A,AUX!$B:$B,"",0,1) -> RED | D119: =IF(C119=0,INDEX($C:$C,MAX(_xlfn.XLOOKUP("BLACK",$C$7:C119,$A$7:A119,"",0,-1),_xlfn.XLOOKUP("RED",$C$7:C119,$A$7:A119,"",0,-1)),1),C119) -> RED | E119: =IF(AND(COUNTIF($D$7:D119,"RED")>0,COUNTIF($D$7:D119,"BLACK")>0),A119-MIN(_xlfn.XLOOKUP("BLACK",$D$7:D119,$A$7:A119,"",0,-1),_xlfn.XLOOKUP("RED",$D$7:D119,$A$7:A119,"",0,-1)),A119-6) -> 1 | F119: BET | G119: RED | H119: SUCCESS | I119: 5 | J119: 10 | K119: 285 | M119: 50
A120: =ROW() -> 120 | B120: 11 | C120: =_xlfn.XLOOKUP(B120,AUX!$A:$A,AUX!$B:$B,"",0,1) -> RED | D120: =IF(C120=0,INDEX($C:$C,MAX(_xlfn.XLOOKUP("BLACK",$C$7:C120,$A$7:A120,"",0,-1),_xlfn.XLOOKUP("RED",$C$7:C120,$A$7:A120,"",0,-1)),1),C120) -> RED | E120: =IF(AND(COUNTIF($D$7:D120,"RED")>0,COUNTIF($D$7:D120,"BLACK")>0),A120-MIN(_xlfn.XLOOKUP("BLACK",$D$7:D120,$A$7:A120,"",0,-1),_xlfn.XLOOKUP("RED",$D$7:D120,$A$7:A120,"",0,-1)),A120-6) -> 2 | F120: BET | G120: BLACK | H120: FAIL | I120: 5 | J120: 0 | K120: 280 | L120: STOP | M120: 100 | N120: 2
A121: =ROW() -> 121 | B121: 8 | C121: =_xlfn.XLOOKUP(B121,AUX!$A:$A,AUX!$B:$B,"",0,1) -> BLACK | D121: =IF(C121=0,INDEX($C:$C,MAX(_xlfn.XLOOKUP("BLACK",$C$7:C121,$A$7:A121,"",0,-1),_xlfn.XLOOKUP("RED",$C$7:C121,$A$7:A121,"",0,-1)),1),C121) -> BLACK | E121: =IF(AND(COUNTIF($D$7:D121,"RED")>0,COUNTIF($D$7:D121,"BLACK")>0),A121-MIN(_xlfn.XLOOKUP("BLACK",$D$7:D121,$A$7:A121,"",0,-1),_xlfn.XLOOKUP("RED",$D$7:D121,$A$7:A121,"",0,-1)),A121-6) -> 1 | K121: 280 | M121: 50 | N121: 1
A122: =ROW() -> 122 | B122: 13 | C122: =_xlfn.XLOOKUP(B122,AUX!$A:$A,AUX!$B:$B,"",0,1) -> RED | D122: =IF(C122=0,INDEX($C:$C,MAX(_xlfn.XLOOKUP("BLACK",$C$7:C122,$A$7:A122,"",0,-1),_xlfn.XLOOKUP("RED",$C$7:C122,$A$7:A122,"",0,-1)),1),C122) -> RED | E122: =IF(AND(COUNTIF($D$7:D122,"RED")>0,COUNTIF($D$7:D122,"BLACK")>0),A122-MIN(_xlfn.XLOOKUP("BLACK",$D$7:D122,$A$7:A122,"",0,-1),_xlfn.XLOOKUP("RED",$D$7:D122,$A$7:A122,"",0,-1)),A122-6) -> 1 | F122: BET | G122: RED | H122: SUCCESS | I122: 5 | J122: 10 | K122: 285 | M122: 50 | N122: 1
A123: =ROW() -> 123 | B123: 36 | C123: =_xlfn.XLOOKUP(B123,AUX!$A:$A,AUX!$B:$B,"",0,1) -> BLACK | D123: =IF(C123=0,INDEX($C:$C,MAX(_xlfn.XLOOKUP("BLACK",$C$7:C123,$A$7:A123,"",0,-1),_xlfn.XLOOKUP("RED",$C$7:C123,$A$7:A123,"",0,-1)),1),C123) -> BLACK | E123: =IF(AND(COUNTIF($D$7:D123,"RED")>0,COUNTIF($D$7:D123,"BLACK")>0),A123-MIN(_xlfn.XLOOKUP("BLACK",$D$7:D123,$A$7:A123,"",0,-1),_xlfn.XLOOKUP("RED",$D$7:D123,$A$7:A123,"",0,-1)),A123-6) -> 1 | F123: BET | G123: BLACK | H123: SUCCESS | I123: 5 | J123: 10 | K123: 290 | M123: 50 | N123: 1
A124: =ROW() -> 124 | B124: 13 | C124: =_xlfn.XLOOKUP(B124,AUX!$A:$A,AUX!$B:$B,"",0,1) -> RED | D124: =IF(C124=0,INDEX($C:$C,MAX(_xlfn.XLOOKUP("BLACK",$C$7:C124,$A$7:A124,"",0,-1),_xlfn.XLOOKUP("RED",$C$7:C124,$A$7:A124,"",0,-1)),1),C124) -> RED | E124: =IF(AND(COUNTIF($D$7:D124,"RED")>0,COUNTIF($D$7:D124,"BLACK")>0),A124-MIN(_xlfn.XLOOKUP("BLACK",$D$7:D124,$A$7:A124,"",0,-1),_xlfn.XLOOKUP("RED",$D$7:D124,$A$7:A124,"",0,-1)),A124-6) -> 1 | F124: BET | G124: RED | H124: SUCCESS | I124: 5 | J124: 10 | K124: 295 | M124: 50 | N124: 1
A125: =ROW() -> 125 | B125: 6 | C125: =_xlfn.XLOOKUP(B125,AUX!$A:$A,AUX!$B:$B,"",0,1) -> BLACK | D125: =IF(C125=0,INDEX($C:$C,MAX(_xlfn.XLOOKUP("BLACK",$C$7:C125,$A$7:A125,"",0,-1),_xlfn.XLOOKUP("RED",$C$7:C125,$A$7:A125,"",0,-1)),1),C125) -> BLACK | E125: =IF(AND(COUNTIF($D$7:D125,"RED")>0,COUNTIF($D$7:D125,"BLACK")>0),A125-MIN(_xlfn.XLOOKUP("BLACK",$D$7:D125,$A$7:A125,"",0,-1),_xlfn.XLOOKUP("RED",$D$7:D125,$A$7:A125,"",0,-1)),A125-6) -> 1 | F125: BET | G125: BLACK | H125: SUCCESS | I125: 5 | J125: 10 | K125: 300 | M125: 50
A126: =ROW() -> 126 | B126: 36 | C126: =_xlfn.XLOOKUP(B126,AUX!$A:$A,AUX!$B:$B,"",0,1) -> BLACK | D126: =IF(C126=0,INDEX($C:$C,MAX(_xlfn.XLOOKUP("BLACK",$C$7:C126,$A$7:A126,"",0,-1),_xlfn.XLOOKUP("RED",$C$7:C126,$A$7:A126,"",0,-1)),1),C126) -> BLACK | E126: =IF(AND(COUNTIF($D$7:D126,"RED")>0,COUNTIF($D$7:D126,"BLACK")>0),A126-MIN(_xlfn.XLOOKUP("BLACK",$D$7:D126,$A$7:A126,"",0,-1),_xlfn.XLOOKUP("RED",$D$7:D126,$A$7:A126,"",0,-1)),A126-6) -> 2 | F126: BET | G126: RED | H126: FAIL | I126: 5 | J126: 0 | K126: 295 | L126: STOP | M126: 100 | N126: 2
A127: =ROW() -> 127 | B127: 25 | C127: =_xlfn.XLOOKUP(B127,AUX!$A:$A,AUX!$B:$B,"",0,1) -> RED | D127: =IF(C127=0,INDEX($C:$C,MAX(_xlfn.XLOOKUP("BLACK",$C$7:C127,$A$7:A127,"",0,-1),_xlfn.XLOOKUP("RED",$C$7:C127,$A$7:A127,"",0,-1)),1),C127) -> RED | E127: =IF(AND(COUNTIF($D$7:D127,"RED")>0,COUNTIF($D$7:D127,"BLACK")>0),A127-MIN(_xlfn.XLOOKUP("BLACK",$D$7:D127,$A$7:A127,"",0,-1),_xlfn.XLOOKUP("RED",$D$7:D127,$A$7:A127,"",0,-1)),A127-6) -> 1 | K127: 295 | M127: 50 | N127: 1
A128: =ROW() -> 128 | B128: 36 | C128: =_xlfn.XLOOKUP(B128,AUX!$A:$A,AUX!$B:$B,"",0,1) -> BLACK | D128: =IF(C128=0,INDEX($C:$C,MAX(_xlfn.XLOOKUP("BLACK",$C$7:C128,$A$7:A128,"",0,-1),_xlfn.XLOOKUP("RED",$C$7:C128,$A$7:A128,"",0,-1)),1),C128) -> BLACK | E128: =IF(AND(COUNTIF($D$7:D128,"RED")>0,COUNTIF($D$7:D128,"BLACK")>0),A128-MIN(_xlfn.XLOOKUP("BLACK",$D$7:D128,$A$7:A128,"",0,-1),_xlfn.XLOOKUP("RED",$D$7:D128,$A$7:A128,"",0,-1)),A128-6) -> 1 | F128: BET | G128: BLACK | H128: SUCCESS | I128: 5 | J128: 10 | K128: 300 | M128: 50
A129: =ROW() -> 129 | B129: 4 | C129: =_xlfn.XLOOKUP(B129,AUX!$A:$A,AUX!$B:$B,"",0,1) -> BLACK | D129: =IF(C129=0,INDEX($C:$C,MAX(_xlfn.XLOOKUP("BLACK",$C$7:C129,$A$7:A129,"",0,-1),_xlfn.XLOOKUP("RED",$C$7:C129,$A$7:A129,"",0,-1)),1),C129) -> BLACK | E129: =IF(AND(COUNTIF($D$7:D129,"RED")>0,COUNTIF($D$7:D129,"BLACK")>0),A129-MIN(_xlfn.XLOOKUP("BLACK",$D$7:D129,$A$7:A129,"",0,-1),_xlfn.XLOOKUP("RED",$D$7:D129,$A$7:A129,"",0,-1)),A129-6) -> 2 | F129: BET | G129: RED | H129: FAIL | I129: 5 | J129: 0 | K129: 295 | L129: STOP | M129: 100
A130: =ROW() -> 130 | B130: 4 | C130: =_xlfn.XLOOKUP(B130,AUX!$A:$A,AUX!$B:$B,"",0,1) -> BLACK | D130: =IF(C130=0,INDEX($C:$C,MAX(_xlfn.XLOOKUP("BLACK",$C$7:C130,$A$7:A130,"",0,-1),_xlfn.XLOOKUP("RED",$C$7:C130,$A$7:A130,"",0,-1)),1),C130) -> BLACK | E130: =IF(AND(COUNTIF($D$7:D130,"RED")>0,COUNTIF($D$7:D130,"BLACK")>0),A130-MIN(_xlfn.XLOOKUP("BLACK",$D$7:D130,$A$7:A130,"",0,-1),_xlfn.XLOOKUP("RED",$D$7:D130,$A$7:A130,"",0,-1)),A130-6) -> 3 | K130: 295 | L130: STOP | M130: 150 | N130: 3
A131: =ROW() -> 131 | B131: 3 | C131: =_xlfn.XLOOKUP(B131,AUX!$A:$A,AUX!$B:$B,"",0,1) -> RED | D131: =IF(C131=0,INDEX($C:$C,MAX(_xlfn.XLOOKUP("BLACK",$C$7:C131,$A$7:A131,"",0,-1),_xlfn.XLOOKUP("RED",$C$7:C131,$A$7:A131,"",0,-1)),1),C131) -> RED | E131: =IF(AND(COUNTIF($D$7:D131,"RED")>0,COUNTIF($D$7:D131,"BLACK")>0),A131-MIN(_xlfn.XLOOKUP("BLACK",$D$7:D131,$A$7:A131,"",0,-1),_xlfn.XLOOKUP("RED",$D$7:D131,$A$7:A131,"",0,-1)),A131-6) -> 1 | K131: 295 | M131: 50
A132: =ROW() -> 132 | B132: 23 | C132: =_xlfn.XLOOKUP(B132,AUX!$A:$A,AUX!$B:$B,"",0,1) -> RED | D132: =IF(C132=0,INDEX($C:$C,MAX(_xlfn.XLOOKUP("BLACK",$C$7:C132,$A$7:A132,"",0,-1),_xlfn.XLOOKUP("RED",$C$7:C132,$A$7:A132,"",0,-1)),1),C132) -> RED | E132: =IF(AND(COUNTIF($D$7:D132,"RED")>0,COUNTIF($D$7:D132,"BLACK")>0),A132-MIN(_xlfn.XLOOKUP("BLACK",$D$7:D132,$A$7:A132,"",0,-1),_xlfn.XLOOKUP("RED",$D$7:D132,$A$7:A132,"",0,-1)),A132-6) -> 2 | F132: BET | G132: BLACK | H132: FAIL | I132: 5 | J132: 0 | K132: 290 | L132: STOP | M132: 100
A133: =ROW() -> 133 | B133: 1 | C133: =_xlfn.XLOOKUP(B133,AUX!$A:$A,AUX!$B:$B,"",0,1) -> RED | D133: =IF(C133=0,INDEX($C:$C,MAX(_xlfn.XLOOKUP("BLACK",$C$7:C133,$A$7:A133,"",0,-1),_xlfn.XLOOKUP("RED",$C$7:C133,$A$7:A133,"",0,-1)),1),C133) -> RED | E133: =IF(AND(COUNTIF($D$7:D133,"RED")>0,COUNTIF($D$7:D133,"BLACK")>0),A133-MIN(_xlfn.XLOOKUP("BLACK",$D$7:D133,$A$7:A133,"",0,-1),_xlfn.XLOOKUP("RED",$D$7:D133,$A$7:A133,"",0,-1)),A133-6) -> 3 | K133: 290 | L133: STOP | M133: 150 | N133: 3
A134: =ROW() -> 134 | B134: 26 | C134: =_xlfn.XLOOKUP(B134,AUX!$A:$A,AUX!$B:$B,"",0,1) -> BLACK | D134: =IF(C134=0,INDEX($C:$C,MAX(_xlfn.XLOOKUP("BLACK",$C$7:C134,$A$7:A134,"",0,-1),_xlfn.XLOOKUP("RED",$C$7:C134,$A$7:A134,"",0,-1)),1),C134) -> BLACK | E134: =IF(AND(COUNTIF($D$7:D134,"RED")>0,COUNTIF($D$7:D134,"BLACK")>0),A134-MIN(_xlfn.XLOOKUP("BLACK",$D$7:D134,$A$7:A134,"",0,-1),_xlfn.XLOOKUP("RED",$D$7:D134,$A$7:A134,"",0,-1)),A134-6) -> 1 | K134: 290 | M134: 50
A135: =ROW() -> 135 | B135: 2 | C135: =_xlfn.XLOOKUP(B135,AUX!$A:$A,AUX!$B:$B,"",0,1) -> BLACK | D135: =IF(C135=0,INDEX($C:$C,MAX(_xlfn.XLOOKUP("BLACK",$C$7:C135,$A$7:A135,"",0,-1),_xlfn.XLOOKUP("RED",$C$7:C135,$A$7:A135,"",0,-1)),1),C135) -> BLACK | E135: =IF(AND(COUNTIF($D$7:D135,"RED")>0,COUNTIF($D$7:D135,"BLACK")>0),A135-MIN(_xlfn.XLOOKUP("BLACK",$D$7:D135,$A$7:A135,"",0,-1),_xlfn.XLOOKUP("RED",$D$7:D135,$A$7:A135,"",0,-1)),A135-6) -> 2 | F135: BET | G135: RED | H135: FAIL | I135: 5 | J135: 0 | K135: 285 | L135: STOP | M135: 100 | N135: 2
A136: =ROW() -> 136 | B136: =RANDBETWEEN(0,36) -> 25 | C136: =_xlfn.XLOOKUP(B136,AUX!$A:$A,AUX!$B:$B,"",0,1) -> RED | D136: =IF(C136=0,INDEX($C:$C,MAX(_xlfn.XLOOKUP("BLACK",$C$7:C136,$A$7:A136,"",0,-1),_xlfn.XLOOKUP("RED",$C$7:C136,$A$7:A136,"",0,-1)),1),C136) -> RED | E136: =IF(AND(COUNTIF($D$7:D136,"RED")>0,COUNTIF($D$7:D136,"BLACK")>0),A136-MIN(_xlfn.XLOOKUP("BLACK",$D$7:D136,$A$7:A136,"",0,-1),_xlfn.XLOOKUP("RED",$D$7:D136,$A$7:A136,"",0,-1)),A136-6) -> 1 | J136: =IF(F136="BET",IF(H136="SUCCESS",I136*2,0),"") ->  | K136: =IF(F136="BET",K135-I136+J136,K135) -> 285 | L136: =IF(OR(AND(H136="FAIL",I136=$G$4),AND(L135="STOP",E136>$E$3)),"STOP","") ->  | M136: 50 | N136: =IF(E137<=E136,E136,"") -> 1
A137: =ROW() -> 137 | B137: 36 | C137: =_xlfn.XLOOKUP(B137,AUX!$A:$A,AUX!$B:$B,"",0,1) -> BLACK | D137: =IF(C137=0,INDEX($C:$C,MAX(_xlfn.XLOOKUP("BLACK",$C$7:C137,$A$7:A137,"",0,-1),_xlfn.XLOOKUP("RED",$C$7:C137,$A$7:A137,"",0,-1)),1),C137) -> BLACK | E137: =IF(AND(COUNTIF($D$7:D137,"RED")>0,COUNTIF($D$7:D137,"BLACK")>0),A137-MIN(_xlfn.XLOOKUP("BLACK",$D$7:D137,$A$7:A137,"",0,-1),_xlfn.XLOOKUP("RED",$D$7:D137,$A$7:A137,"",0,-1)),A137-6) -> 1 | F137: =IF(AND(E136>=$E$3,L136=""),"BET","") -> BET | G137: =IF(F137="BET",IF(D136="RED","BLACK",IF(D136="BLACK","RED","ERROR")),"") -> BLACK | H137: =IF(F137="BET",IF(D137=G137,"SUCCESS","FAIL"),"") -> SUCCESS | I137: =IF(F137="BET",IF(OR(I136>=$G$4,F136=""),$F$3,IF(AND(F136="BET",H136="FAIL"),I136*2,$F$3)),"") -> 5 | J137: 10 | K137: 290 | M137: =E137*50 -> 50
A138: =ROW() -> 138 | B138: 12 | C138: =_xlfn.XLOOKUP(B138,AUX!$A:$A,AUX!$B:$B,"",0,1) -> BLACK | D138: =IF(C138=0,INDEX($C:$C,MAX(_xlfn.XLOOKUP("BLACK",$C$7:C138,$A$7:A138,"",0,-1),_xlfn.XLOOKUP("RED",$C$7:C138,$A$7:A138,"",0,-1)),1),C138) -> BLACK | E138: =IF(AND(COUNTIF($D$7:D138,"RED")>0,COUNTIF($D$7:D138,"BLACK")>0),A138-MIN(_xlfn.XLOOKUP("BLACK",$D$7:D138,$A$7:A138,"",0,-1),_xlfn.XLOOKUP("RED",$D$7:D138,$A$7:A138,"",0,-1)),A138-6) -> 2 | F138: BET | G138: RED | H138: FAIL | I138: 5 | J138: 0 | K138: 285 | L138: STOP | M138: 100
A139: =ROW() -> 139 | B139: 10 | C139: =_xlfn.XLOOKUP(B139,AUX!$A:$A,AUX!$B:$B,"",0,1) -> BLACK | D139: =IF(C139=0,INDEX($C:$C,MAX(_xlfn.XLOOKUP("BLACK",$C$7:C139,$A$7:A139,"",0,-1),_xlfn.XLOOKUP("RED",$C$7:C139,$A$7:A139,"",0,-1)),1),C139) -> BLACK | E139: =IF(AND(COUNTIF($D$7:D139,"RED")>0,COUNTIF($D$7:D139,"BLACK")>0),A139-MIN(_xlfn.XLOOKUP("BLACK",$D$7:D139,$A$7:A139,"",0,-1),_xlfn.XLOOKUP("RED",$D$7:D139,$A$7:A139,"",0,-1)),A139-6) -> 3 | K139: 285 | L139: STOP | M139: 150
A140: =ROW() -> 140 | B140: 10 | C140: =_xlfn.XLOOKUP(B140,AUX!$A:$A,AUX!$B:$B,"",0,1) -> BLACK | D140: =IF(C140=0,INDEX($C:$C,MAX(_xlfn.XLOOKUP("BLACK",$C$7:C140,$A$7:A140,"",0,-1),_xlfn.XLOOKUP("RED",$C$7:C140,$A$7:A140,"",0,-1)),1),C140) -> BLACK | E140: =IF(AND(COUNTIF($D$7:D140,"RED")>0,COUNTIF($D$7:D140,"BLACK")>0),A140-MIN(_xlfn.XLOOKUP("BLACK",$D$7:D140,$A$7:A140,"",0,-1),_xlfn.XLOOKUP("RED",$D$7:D140,$A$7:A140,"",0,-1)),A140-6) -> 4 | K140: 285 | L140: STOP | M140: 200 | N140: 4
A141: =ROW() -> 141 | B141: 1 | C141: =_xlfn.XLOOKUP(B141,AUX!$A:$A,AUX!$B:$B,"",0,1) -> RED | D141: =IF(C141=0,INDEX($C:$C,MAX(_xlfn.XLOOKUP("BLACK",$C$7:C141,$A$7:A141,"",0,-1),_xlfn.XLOOKUP("RED",$C$7:C141,$A$7:A141,"",0,-1)),1),C141) -> RED | E141: =IF(AND(COUNTIF($D$7:D141,"RED")>0,COUNTIF($D$7:D141,"BLACK")>0),A141-MIN(_xlfn.XLOOKUP("BLACK",$D$7:D141,$A$7:A141,"",0,-1),_xlfn.XLOOKUP("RED",$D$7:D141,$A$7:A141,"",0,-1)),A141-6) -> 1 | K141: 285 | M141: 50
A142: =ROW() -> 142 | B142: 0 | C142: =_xlfn.XLOOKUP(B142,AUX!$A:$A,AUX!$B:$B,"",0,1) -> 0 | D142: =IF(C142=0,INDEX($C:$C,MAX(_xlfn.XLOOKUP("BLACK",$C$7:C142,$A$7:A142,"",0,-1),_xlfn.XLOOKUP("RED",$C$7:C142,$A$7:A142,"",0,-1)),1),C142) -> RED | E142: =IF(AND(COUNTIF($D$7:D142,"RED")>0,COUNTIF($D$7:D142,"BLACK")>0),A142-MIN(_xlfn.XLOOKUP("BLACK",$D$7:D142,$A$7:A142,"",0,-1),_xlfn.XLOOKUP("RED",$D$7:D142,$A$7:A142,"",0,-1)),A142-6) -> 2 | F142: BET | G142: BLACK | H142: FAIL | I142: 5 | J142: 0 | K142: 280 | L142: STOP | M142: 100
A143: =ROW() -> 143 | B143: 19 | C143: =_xlfn.XLOOKUP(B143,AUX!$A:$A,AUX!$B:$B,"",0,1) -> RED | D143: =IF(C143=0,INDEX($C:$C,MAX(_xlfn.XLOOKUP("BLACK",$C$7:C143,$A$7:A143,"",0,-1),_xlfn.XLOOKUP("RED",$C$7:C143,$A$7:A143,"",0,-1)),1),C143) -> RED | E143: =IF(AND(COUNTIF($D$7:D143,"RED")>0,COUNTIF($D$7:D143,"BLACK")>0),A143-MIN(_xlfn.XLOOKUP("BLACK",$D$7:D143,$A$7:A143,"",0,-1),_xlfn.XLOOKUP("RED",$D$7:D143,$A$7:A143,"",0,-1)),A143-6) -> 3 | K143: 280 | L143: STOP | M143: 150
A144: =ROW() -> 144 | B144: 19 | C144: =_xlfn.XLOOKUP(B144,AUX!$A:$A,AUX!$B:$B,"",0,1) -> RED | D144: =IF(C144=0,INDEX($C:$C,MAX(_xlfn.XLOOKUP("BLACK",$C$7:C144,$A$7:A144,"",0,-1),_xlfn.XLOOKUP("RED",$C$7:C144,$A$7:A144,"",0,-1)),1),C144) -> RED | E144: =IF(AND(COUNTIF($D$7:D144,"RED")>0,COUNTIF($D$7:D144,"BLACK")>0),A144-MIN(_xlfn.XLOOKUP("BLACK",$D$7:D144,$A$7:A144,"",0,-1),_xlfn.XLOOKUP("RED",$D$7:D144,$A$7:A144,"",0,-1)),A144-6) -> 4 | K144: 280 | L144: STOP | M144: 200
A145: =ROW() -> 145 | B145: 0 | C145: =_xlfn.XLOOKUP(B145,AUX!$A:$A,AUX!$B:$B,"",0,1) -> 0 | D145: =IF(C145=0,INDEX($C:$C,MAX(_xlfn.XLOOKUP("BLACK",$C$7:C145,$A$7:A145,"",0,-1),_xlfn.XLOOKUP("RED",$C$7:C145,$A$7:A145,"",0,-1)),1),C145) -> RED | E145: =IF(AND(COUNTIF($D$7:D145,"RED")>0,COUNTIF($D$7:D145,"BLACK")>0),A145-MIN(_xlfn.XLOOKUP("BLACK",$D$7:D145,$A$7:A145,"",0,-1),_xlfn.XLOOKUP("RED",$D$7:D145,$A$7:A145,"",0,-1)),A145-6) -> 5 | K145: 280 | L145: STOP | M145: 250 | N145: 5
A146: =ROW() -> 146 | B146: 32 | C146: =_xlfn.XLOOKUP(B146,AUX!$A:$A,AUX!$B:$B,"",0,1) -> BLACK | D146: =IF(C146=0,INDEX($C:$C,MAX(_xlfn.XLOOKUP("BLACK",$C$7:C146,$A$7:A146,"",0,-1),_xlfn.XLOOKUP("RED",$C$7:C146,$A$7:A146,"",0,-1)),1),C146) -> BLACK | E146: =IF(AND(COUNTIF($D$7:D146,"RED")>0,COUNTIF($D$7:D146,"BLACK")>0),A146-MIN(_xlfn.XLOOKUP("BLACK",$D$7:D146,$A$7:A146,"",0,-1),_xlfn.XLOOKUP("RED",$D$7:D146,$A$7:A146,"",0,-1)),A146-6) -> 1 | K146: 280 | M146: 50 | N146: 1
A147: =ROW() -> 147 | B147: 3 | C147: =_xlfn.XLOOKUP(B147,AUX!$A:$A,AUX!$B:$B,"",0,1) -> RED | D147: =IF(C147=0,INDEX($C:$C,MAX(_xlfn.XLOOKUP("BLACK",$C$7:C147,$A$7:A147,"",0,-1),_xlfn.XLOOKUP("RED",$C$7:C147,$A$7:A147,"",0,-1)),1),C147) -> RED | E147: =IF(AND(COUNTIF($D$7:D147,"RED")>0,COUNTIF($D$7:D147,"BLACK")>0),A147-MIN(_xlfn.XLOOKUP("BLACK",$D$7:D147,$A$7:A147,"",0,-1),_xlfn.XLOOKUP("RED",$D$7:D147,$A$7:A147,"",0,-1)),A147-6) -> 1 | F147: BET | G147: RED | H147: SUCCESS | I147: 5 | J147: 10 | K147: 285 | M147: 50 | N147: 1
A148: =ROW() -> 148 | B148: 10 | C148: =_xlfn.XLOOKUP(B148,AUX!$A:$A,AUX!$B:$B,"",0,1) -> BLACK | D148: =IF(C148=0,INDEX($C:$C,MAX(_xlfn.XLOOKUP("BLACK",$C$7:C148,$A$7:A148,"",0,-1),_xlfn.XLOOKUP("RED",$C$7:C148,$A$7:A148,"",0,-1)),1),C148) -> BLACK | E148: =IF(AND(COUNTIF($D$7:D148,"RED")>0,COUNTIF($D$7:D148,"BLACK")>0),A148-MIN(_xlfn.XLOOKUP("BLACK",$D$7:D148,$A$7:A148,"",0,-1),_xlfn.XLOOKUP("RED",$D$7:D148,$A$7:A148,"",0,-1)),A148-6) -> 1 | F148: BET | G148: BLACK | H148: SUCCESS | I148: 5 | J148: 10 | K148: 290 | M148: 50
A149: =ROW() -> 149 | B149: 10 | C149: =_xlfn.XLOOKUP(B149,AUX!$A:$A,AUX!$B:$B,"",0,1) -> BLACK | D149: =IF(C149=0,INDEX($C:$C,MAX(_xlfn.XLOOKUP("BLACK",$C$7:C149,$A$7:A149,"",0,-1),_xlfn.XLOOKUP("RED",$C$7:C149,$A$7:A149,"",0,-1)),1),C149) -> BLACK | E149: =IF(AND(COUNTIF($D$7:D149,"RED")>0,COUNTIF($D$7:D149,"BLACK")>0),A149-MIN(_xlfn.XLOOKUP("BLACK",$D$7:D149,$A$7:A149,"",0,-1),_xlfn.XLOOKUP("RED",$D$7:D149,$A$7:A149,"",0,-1)),A149-6) -> 2 | F149: BET | G149: RED | H149: FAIL | I149: 5 | J149: 0 | K149: 285 | L149: STOP | M149: 100
A150: =ROW() -> 150 | B150: 10 | C150: =_xlfn.XLOOKUP(B150,AUX!$A:$A,AUX!$B:$B,"",0,1) -> BLACK | D150: =IF(C150=0,INDEX($C:$C,MAX(_xlfn.XLOOKUP("BLACK",$C$7:C150,$A$7:A150,"",0,-1),_xlfn.XLOOKUP("RED",$C$7:C150,$A$7:A150,"",0,-1)),1),C150) -> BLACK | E150: =IF(AND(COUNTIF($D$7:D150,"RED")>0,COUNTIF($D$7:D150,"BLACK")>0),A150-MIN(_xlfn.XLOOKUP("BLACK",$D$7:D150,$A$7:A150,"",0,-1),_xlfn.XLOOKUP("RED",$D$7:D150,$A$7:A150,"",0,-1)),A150-6) -> 3 | K150: 285 | L150: STOP | M150: 150
A151: =ROW() -> 151 | B151: 18 | C151: =_xlfn.XLOOKUP(B151,AUX!$A:$A,AUX!$B:$B,"",0,1) -> BLACK | D151: =IF(C151=0,INDEX($C:$C,MAX(_xlfn.XLOOKUP("BLACK",$C$7:C151,$A$7:A151,"",0,-1),_xlfn.XLOOKUP("RED",$C$7:C151,$A$7:A151,"",0,-1)),1),C151) -> BLACK | E151: =IF(AND(COUNTIF($D$7:D151,"RED")>0,COUNTIF($D$7:D151,"BLACK")>0),A151-MIN(_xlfn.XLOOKUP("BLACK",$D$7:D151,$A$7:A151,"",0,-1),_xlfn.XLOOKUP("RED",$D$7:D151,$A$7:A151,"",0,-1)),A151-6) -> 4 | F151: =IF(AND(E150>=$E$3,L150=""),"BET","") ->  | G151: =IF(F151="BET",IF(D150="RED","BLACK",IF(D150="BLACK","RED","ERROR")),"") ->  | H151: =IF(F151="BET",IF(D151=G151,"SUCCESS","FAIL"),"") ->  | I151: =IF(F151="BET",IF(OR(I150>=$G$4,F150=""),$F$3,IF(AND(F150="BET",H150="FAIL"),I150*2,$F$3)),"") ->  | J151: =IF(F151="BET",IF(H151="SUCCESS",I151*2,0),"") ->  | K151: =IF(F151="BET",K150-I151+J151,K150) -> 285 | L151: STOP | M151: =E151*50 -> 200 | N151: 4
A152: =ROW() -> 152 | B152: 17 | C152: =_xlfn.XLOOKUP(B152,AUX!$A:$A,AUX!$B:$B,"",0,1) -> RED | D152: =IF(C152=0,INDEX($C:$C,MAX(_xlfn.XLOOKUP("BLACK",$C$7:C152,$A$7:A152,"",0,-1),_xlfn.XLOOKUP("RED",$C$7:C152,$A$7:A152,"",0,-1)),1),C152) -> RED | E152: =IF(AND(COUNTIF($D$7:D152,"RED")>0,COUNTIF($D$7:D152,"BLACK")>0),A152-MIN(_xlfn.XLOOKUP("BLACK",$D$7:D152,$A$7:A152,"",0,-1),_xlfn.XLOOKUP("RED",$D$7:D152,$A$7:A152,"",0,-1)),A152-6) -> 1 | K152: 285 | M152: 50 | N152: 1
A153: =ROW() -> 153 | B153: 24 | C153: =_xlfn.XLOOKUP(B153,AUX!$A:$A,AUX!$B:$B,"",0,1) -> BLACK | D153: =IF(C153=0,INDEX($C:$C,MAX(_xlfn.XLOOKUP("BLACK",$C$7:C153,$A$7:A153,"",0,-1),_xlfn.XLOOKUP("RED",$C$7:C153,$A$7:A153,"",0,-1)),1),C153) -> BLACK | E153: =IF(AND(COUNTIF($D$7:D153,"RED")>0,COUNTIF($D$7:D153,"BLACK")>0),A153-MIN(_xlfn.XLOOKUP("BLACK",$D$7:D153,$A$7:A153,"",0,-1),_xlfn.XLOOKUP("RED",$D$7:D153,$A$7:A153,"",0,-1)),A153-6) -> 1 | F153: BET | G153: BLACK | H153: SUCCESS | I153: 5 | J153: 10 | K153: 290 | M153: 50
A154: =ROW() -> 154 | B154: 26 | C154: =_xlfn.XLOOKUP(B154,AUX!$A:$A,AUX!$B:$B,"",0,1) -> BLACK | D154: =IF(C154=0,INDEX($C:$C,MAX(_xlfn.XLOOKUP("BLACK",$C$7:C154,$A$7:A154,"",0,-1),_xlfn.XLOOKUP("RED",$C$7:C154,$A$7:A154,"",0,-1)),1),C154) -> BLACK | E154: =IF(AND(COUNTIF($D$7:D154,"RED")>0,COUNTIF($D$7:D154,"BLACK")>0),A154-MIN(_xlfn.XLOOKUP("BLACK",$D$7:D154,$A$7:A154,"",0,-1),_xlfn.XLOOKUP("RED",$D$7:D154,$A$7:A154,"",0,-1)),A154-6) -> 2 | F154: BET | G154: RED | H154: FAIL | I154: 5 | J154: 0 | K154: 285 | L154: STOP | M154: 100
A155: =ROW() -> 155 | B155: 10 | C155: =_xlfn.XLOOKUP(B155,AUX!$A:$A,AUX!$B:$B,"",0,1) -> BLACK | D155: =IF(C155=0,INDEX($C:$C,MAX(_xlfn.XLOOKUP("BLACK",$C$7:C155,$A$7:A155,"",0,-1),_xlfn.XLOOKUP("RED",$C$7:C155,$A$7:A155,"",0,-1)),1),C155) -> BLACK | E155: =IF(AND(COUNTIF($D$7:D155,"RED")>0,COUNTIF($D$7:D155,"BLACK")>0),A155-MIN(_xlfn.XLOOKUP("BLACK",$D$7:D155,$A$7:A155,"",0,-1),_xlfn.XLOOKUP("RED",$D$7:D155,$A$7:A155,"",0,-1)),A155-6) -> 3 | K155: 285 | L155: STOP | M155: 150 | N155: 3
A156: =ROW() -> 156 | B156: 19 | C156: =_xlfn.XLOOKUP(B156,AUX!$A:$A,AUX!$B:$B,"",0,1) -> RED | D156: =IF(C156=0,INDEX($C:$C,MAX(_xlfn.XLOOKUP("BLACK",$C$7:C156,$A$7:A156,"",0,-1),_xlfn.XLOOKUP("RED",$C$7:C156,$A$7:A156,"",0,-1)),1),C156) -> RED | E156: =IF(AND(COUNTIF($D$7:D156,"RED")>0,COUNTIF($D$7:D156,"BLACK")>0),A156-MIN(_xlfn.XLOOKUP("BLACK",$D$7:D156,$A$7:A156,"",0,-1),_xlfn.XLOOKUP("RED",$D$7:D156,$A$7:A156,"",0,-1)),A156-6) -> 1 | K156: 285 | M156: 50
A157: =ROW() -> 157 | B157: 19 | C157: =_xlfn.XLOOKUP(B157,AUX!$A:$A,AUX!$B:$B,"",0,1) -> RED | D157: =IF(C157=0,INDEX($C:$C,MAX(_xlfn.XLOOKUP("BLACK",$C$7:C157,$A$7:A157,"",0,-1),_xlfn.XLOOKUP("RED",$C$7:C157,$A$7:A157,"",0,-1)),1),C157) -> RED | E157: =IF(AND(COUNTIF($D$7:D157,"RED")>0,COUNTIF($D$7:D157,"BLACK")>0),A157-MIN(_xlfn.XLOOKUP("BLACK",$D$7:D157,$A$7:A157,"",0,-1),_xlfn.XLOOKUP("RED",$D$7:D157,$A$7:A157,"",0,-1)),A157-6) -> 2 | F157: =IF(AND(E156>=$E$3,L156=""),"BET","") -> BET | G157: =IF(F157="BET",IF(D156="RED","BLACK",IF(D156="BLACK","RED","ERROR")),"") -> BLACK | H157: =IF(F157="BET",IF(D157=G157,"SUCCESS","FAIL"),"") -> FAIL | I157: =IF(F157="BET",IF(OR(I156>=$G$4,F156=""),$F$3,IF(AND(F156="BET",H156="FAIL"),I156*2,$F$3)),"") -> 5 | J157: =IF(F157="BET",IF(H157="SUCCESS",I157*2,0),"") -> 0 | K157: =IF(F157="BET",K156-I157+J157,K156) -> 280 | L157: STOP | M157: =E157*50 -> 100 | N157: 2
A158: =ROW() -> 158 | B158: 14 | C158: =_xlfn.XLOOKUP(B158,AUX!$A:$A,AUX!$B:$B,"",0,1) -> BLACK | D158: =IF(C158=0,INDEX($C:$C,MAX(_xlfn.XLOOKUP("BLACK",$C$7:C158,$A$7:A158,"",0,-1),_xlfn.XLOOKUP("RED",$C$7:C158,$A$7:A158,"",0,-1)),1),C158) -> BLACK | E158: =IF(AND(COUNTIF($D$7:D158,"RED")>0,COUNTIF($D$7:D158,"BLACK")>0),A158-MIN(_xlfn.XLOOKUP("BLACK",$D$7:D158,$A$7:A158,"",0,-1),_xlfn.XLOOKUP("RED",$D$7:D158,$A$7:A158,"",0,-1)),A158-6) -> 1 | K158: 280 | M158: 50 | N158: 1
A159: =ROW() -> 159 | B159: 11 | C159: =_xlfn.XLOOKUP(B159,AUX!$A:$A,AUX!$B:$B,"",0,1) -> RED | D159: =IF(C159=0,INDEX($C:$C,MAX(_xlfn.XLOOKUP("BLACK",$C$7:C159,$A$7:A159,"",0,-1),_xlfn.XLOOKUP("RED",$C$7:C159,$A$7:A159,"",0,-1)),1),C159) -> RED | E159: =IF(AND(COUNTIF($D$7:D159,"RED")>0,COUNTIF($D$7:D159,"BLACK")>0),A159-MIN(_xlfn.XLOOKUP("BLACK",$D$7:D159,$A$7:A159,"",0,-1),_xlfn.XLOOKUP("RED",$D$7:D159,$A$7:A159,"",0,-1)),A159-6) -> 1 | F159: BET | G159: RED | H159: SUCCESS | I159: 5 | J159: 10 | K159: 285 | M159: 50
A160: =ROW() -> 160 | B160: 31 | C160: =_xlfn.XLOOKUP(B160,AUX!$A:$A,AUX!$B:$B,"",0,1) -> RED | D160: =IF(C160=0,INDEX($C:$C,MAX(_xlfn.XLOOKUP("BLACK",$C$7:C160,$A$7:A160,"",0,-1),_xlfn.XLOOKUP("RED",$C$7:C160,$A$7:A160,"",0,-1)),1),C160) -> RED | E160: =IF(AND(COUNTIF($D$7:D160,"RED")>0,COUNTIF($D$7:D160,"BLACK")>0),A160-MIN(_xlfn.XLOOKUP("BLACK",$D$7:D160,$A$7:A160,"",0,-1),_xlfn.XLOOKUP("RED",$D$7:D160,$A$7:A160,"",0,-1)),A160-6) -> 2 | F160: BET | G160: BLACK | H160: FAIL | I160: 5 | J160: 0 | K160: 280 | L160: STOP | M160: 100 | N160: 2
A161: =ROW() -> 161 | B161: 14 | C161: =_xlfn.XLOOKUP(B161,AUX!$A:$A,AUX!$B:$B,"",0,1) -> BLACK | D161: =IF(C161=0,INDEX($C:$C,MAX(_xlfn.XLOOKUP("BLACK",$C$7:C161,$A$7:A161,"",0,-1),_xlfn.XLOOKUP("RED",$C$7:C161,$A$7:A161,"",0,-1)),1),C161) -> BLACK | E161: =IF(AND(COUNTIF($D$7:D161,"RED")>0,COUNTIF($D$7:D161,"BLACK")>0),A161-MIN(_xlfn.XLOOKUP("BLACK",$D$7:D161,$A$7:A161,"",0,-1),_xlfn.XLOOKUP("RED",$D$7:D161,$A$7:A161,"",0,-1)),A161-6) -> 1 | K161: 280 | M161: 50
A162: =ROW() -> 162 | B162: 6 | C162: =_xlfn.XLOOKUP(B162,AUX!$A:$A,AUX!$B:$B,"",0,1) -> BLACK | D162: =IF(C162=0,INDEX($C:$C,MAX(_xlfn.XLOOKUP("BLACK",$C$7:C162,$A$7:A162,"",0,-1),_xlfn.XLOOKUP("RED",$C$7:C162,$A$7:A162,"",0,-1)),1),C162) -> BLACK | E162: =IF(AND(COUNTIF($D$7:D162,"RED")>0,COUNTIF($D$7:D162,"BLACK")>0),A162-MIN(_xlfn.XLOOKUP("BLACK",$D$7:D162,$A$7:A162,"",0,-1),_xlfn.XLOOKUP("RED",$D$7:D162,$A$7:A162,"",0,-1)),A162-6) -> 2 | F162: BET | G162: RED | H162: FAIL | I162: 5 | J162: 0 | K162: 275 | L162: STOP | M162: 100 | N162: 2
A163: =ROW() -> 163 | B163: 15 | C163: =_xlfn.XLOOKUP(B163,AUX!$A:$A,AUX!$B:$B,"",0,1) -> RED | D163: =IF(C163=0,INDEX($C:$C,MAX(_xlfn.XLOOKUP("BLACK",$C$7:C163,$A$7:A163,"",0,-1),_xlfn.XLOOKUP("RED",$C$7:C163,$A$7:A163,"",0,-1)),1),C163) -> RED | E163: =IF(AND(COUNTIF($D$7:D163,"RED")>0,COUNTIF($D$7:D163,"BLACK")>0),A163-MIN(_xlfn.XLOOKUP("BLACK",$D$7:D163,$A$7:A163,"",0,-1),_xlfn.XLOOKUP("RED",$D$7:D163,$A$7:A163,"",0,-1)),A163-6) -> 1 | K163: 275 | M163: 50 | N163: 1
A164: =ROW() -> 164 | B164: 18 | C164: =_xlfn.XLOOKUP(B164,AUX!$A:$A,AUX!$B:$B,"",0,1) -> BLACK | D164: =IF(C164=0,INDEX($C:$C,MAX(_xlfn.XLOOKUP("BLACK",$C$7:C164,$A$7:A164,"",0,-1),_xlfn.XLOOKUP("RED",$C$7:C164,$A$7:A164,"",0,-1)),1),C164) -> BLACK | E164: =IF(AND(COUNTIF($D$7:D164,"RED")>0,COUNTIF($D$7:D164,"BLACK")>0),A164-MIN(_xlfn.XLOOKUP("BLACK",$D$7:D164,$A$7:A164,"",0,-1),_xlfn.XLOOKUP("RED",$D$7:D164,$A$7:A164,"",0,-1)),A164-6) -> 1 | F164: BET | G164: BLACK | H164: SUCCESS | I164: 5 | J164: 10 | K164: 280 | M164: 50
A165: =ROW() -> 165 | B165: 8 | C165: =_xlfn.XLOOKUP(B165,AUX!$A:$A,AUX!$B:$B,"",0,1) -> BLACK | D165: =IF(C165=0,INDEX($C:$C,MAX(_xlfn.XLOOKUP("BLACK",$C$7:C165,$A$7:A165,"",0,-1),_xlfn.XLOOKUP("RED",$C$7:C165,$A$7:A165,"",0,-1)),1),C165) -> BLACK | E165: =IF(AND(COUNTIF($D$7:D165,"RED")>0,COUNTIF($D$7:D165,"BLACK")>0),A165-MIN(_xlfn.XLOOKUP("BLACK",$D$7:D165,$A$7:A165,"",0,-1),_xlfn.XLOOKUP("RED",$D$7:D165,$A$7:A165,"",0,-1)),A165-6) -> 2 | F165: BET | G165: RED | H165: FAIL | I165: 5 | J165: 0 | K165: 275 | L165: STOP | M165: 100 | N165: 2
A166: =ROW() -> 166 | B166: 9 | C166: =_xlfn.XLOOKUP(B166,AUX!$A:$A,AUX!$B:$B,"",0,1) -> RED | D166: =IF(C166=0,INDEX($C:$C,MAX(_xlfn.XLOOKUP("BLACK",$C$7:C166,$A$7:A166,"",0,-1),_xlfn.XLOOKUP("RED",$C$7:C166,$A$7:A166,"",0,-1)),1),C166) -> RED | E166: =IF(AND(COUNTIF($D$7:D166,"RED")>0,COUNTIF($D$7:D166,"BLACK")>0),A166-MIN(_xlfn.XLOOKUP("BLACK",$D$7:D166,$A$7:A166,"",0,-1),_xlfn.XLOOKUP("RED",$D$7:D166,$A$7:A166,"",0,-1)),A166-6) -> 1 | K166: 275 | M166: 50
A167: =ROW() -> 167 | B167: 3 | C167: =_xlfn.XLOOKUP(B167,AUX!$A:$A,AUX!$B:$B,"",0,1) -> RED | D167: =IF(C167=0,INDEX($C:$C,MAX(_xlfn.XLOOKUP("BLACK",$C$7:C167,$A$7:A167,"",0,-1),_xlfn.XLOOKUP("RED",$C$7:C167,$A$7:A167,"",0,-1)),1),C167) -> RED | E167: =IF(AND(COUNTIF($D$7:D167,"RED")>0,COUNTIF($D$7:D167,"BLACK")>0),A167-MIN(_xlfn.XLOOKUP("BLACK",$D$7:D167,$A$7:A167,"",0,-1),_xlfn.XLOOKUP("RED",$D$7:D167,$A$7:A167,"",0,-1)),A167-6) -> 2 | F167: BET | G167: BLACK | H167: FAIL | I167: 5 | J167: 0 | K167: 270 | L167: STOP | M167: 100
A168: =ROW() -> 168 | B168: 25 | C168: =_xlfn.XLOOKUP(B168,AUX!$A:$A,AUX!$B:$B,"",0,1) -> RED | D168: =IF(C168=0,INDEX($C:$C,MAX(_xlfn.XLOOKUP("BLACK",$C$7:C168,$A$7:A168,"",0,-1),_xlfn.XLOOKUP("RED",$C$7:C168,$A$7:A168,"",0,-1)),1),C168) -> RED | E168: =IF(AND(COUNTIF($D$7:D168,"RED")>0,COUNTIF($D$7:D168,"BLACK")>0),A168-MIN(_xlfn.XLOOKUP("BLACK",$D$7:D168,$A$7:A168,"",0,-1),_xlfn.XLOOKUP("RED",$D$7:D168,$A$7:A168,"",0,-1)),A168-6) -> 3 | K168: 270 | L168: STOP | M168: 150
A169: =ROW() -> 169 | B169: 1 | C169: =_xlfn.XLOOKUP(B169,AUX!$A:$A,AUX!$B:$B,"",0,1) -> RED | D169: =IF(C169=0,INDEX($C:$C,MAX(_xlfn.XLOOKUP("BLACK",$C$7:C169,$A$7:A169,"",0,-1),_xlfn.XLOOKUP("RED",$C$7:C169,$A$7:A169,"",0,-1)),1),C169) -> RED | E169: =IF(AND(COUNTIF($D$7:D169,"RED")>0,COUNTIF($D$7:D169,"BLACK")>0),A169-MIN(_xlfn.XLOOKUP("BLACK",$D$7:D169,$A$7:A169,"",0,-1),_xlfn.XLOOKUP("RED",$D$7:D169,$A$7:A169,"",0,-1)),A169-6) -> 4 | K169: 270 | L169: STOP | M169: 200
A170: =ROW() -> 170 | B170: 31 | C170: =_xlfn.XLOOKUP(B170,AUX!$A:$A,AUX!$B:$B,"",0,1) -> RED | D170: =IF(C170=0,INDEX($C:$C,MAX(_xlfn.XLOOKUP("BLACK",$C$7:C170,$A$7:A170,"",0,-1),_xlfn.XLOOKUP("RED",$C$7:C170,$A$7:A170,"",0,-1)),1),C170) -> RED | E170: =IF(AND(COUNTIF($D$7:D170,"RED")>0,COUNTIF($D$7:D170,"BLACK")>0),A170-MIN(_xlfn.XLOOKUP("BLACK",$D$7:D170,$A$7:A170,"",0,-1),_xlfn.XLOOKUP("RED",$D$7:D170,$A$7:A170,"",0,-1)),A170-6) -> 5 | K170: 270 | L170: STOP | M170: 250 | N170: 5
A171: =ROW() -> 171 | B171: 10 | C171: =_xlfn.XLOOKUP(B171,AUX!$A:$A,AUX!$B:$B,"",0,1) -> BLACK | D171: =IF(C171=0,INDEX($C:$C,MAX(_xlfn.XLOOKUP("BLACK",$C$7:C171,$A$7:A171,"",0,-1),_xlfn.XLOOKUP("RED",$C$7:C171,$A$7:A171,"",0,-1)),1),C171) -> BLACK | E171: =IF(AND(COUNTIF($D$7:D171,"RED")>0,COUNTIF($D$7:D171,"BLACK")>0),A171-MIN(_xlfn.XLOOKUP("BLACK",$D$7:D171,$A$7:A171,"",0,-1),_xlfn.XLOOKUP("RED",$D$7:D171,$A$7:A171,"",0,-1)),A171-6) -> 1 | K171: 270 | M171: 50 | N171: 1
A172: =ROW() -> 172 | B172: 5 | C172: =_xlfn.XLOOKUP(B172,AUX!$A:$A,AUX!$B:$B,"",0,1) -> RED | D172: =IF(C172=0,INDEX($C:$C,MAX(_xlfn.XLOOKUP("BLACK",$C$7:C172,$A$7:A172,"",0,-1),_xlfn.XLOOKUP("RED",$C$7:C172,$A$7:A172,"",0,-1)),1),C172) -> RED | E172: =IF(AND(COUNTIF($D$7:D172,"RED")>0,COUNTIF($D$7:D172,"BLACK")>0),A172-MIN(_xlfn.XLOOKUP("BLACK",$D$7:D172,$A$7:A172,"",0,-1),_xlfn.XLOOKUP("RED",$D$7:D172,$A$7:A172,"",0,-1)),A172-6) -> 1 | F172: BET | G172: RED | H172: SUCCESS | I172: 5 | J172: 10 | K172: 275 | M172: 50 | N172: 1
A173: =ROW() -> 173 | B173: 34 | C173: =_xlfn.XLOOKUP(B173,AUX!$A:$A,AUX!$B:$B,"",0,1) -> BLACK | D173: =IF(C173=0,INDEX($C:$C,MAX(_xlfn.XLOOKUP("BLACK",$C$7:C173,$A$7:A173,"",0,-1),_xlfn.XLOOKUP("RED",$C$7:C173,$A$7:A173,"",0,-1)),1),C173) -> BLACK | E173: =IF(AND(COUNTIF($D$7:D173,"RED")>0,COUNTIF($D$7:D173,"BLACK")>0),A173-MIN(_xlfn.XLOOKUP("BLACK",$D$7:D173,$A$7:A173,"",0,-1),_xlfn.XLOOKUP("RED",$D$7:D173,$A$7:A173,"",0,-1)),A173-6) -> 1 | F173: BET | G173: BLACK | H173: SUCCESS | I173: 5 | J173: 10 | K173: 280 | M173: 50 | N173: 1
A174: =ROW() -> 174 | B174: 35 | C174: =_xlfn.XLOOKUP(B174,AUX!$A:$A,AUX!$B:$B,"",0,1) -> RED | D174: =IF(C174=0,INDEX($C:$C,MAX(_xlfn.XLOOKUP("BLACK",$C$7:C174,$A$7:A174,"",0,-1),_xlfn.XLOOKUP("RED",$C$7:C174,$A$7:A174,"",0,-1)),1),C174) -> RED | E174: =IF(AND(COUNTIF($D$7:D174,"RED")>0,COUNTIF($D$7:D174,"BLACK")>0),A174-MIN(_xlfn.XLOOKUP("BLACK",$D$7:D174,$A$7:A174,"",0,-1),_xlfn.XLOOKUP("RED",$D$7:D174,$A$7:A174,"",0,-1)),A174-6) -> 1 | F174: BET | G174: RED | H174: SUCCESS | I174: 5 | J174: 10 | K174: 285 | M174: 50
A175: =ROW() -> 175 | B175: 25 | C175: =_xlfn.XLOOKUP(B175,AUX!$A:$A,AUX!$B:$B,"",0,1) -> RED | D175: =IF(C175=0,INDEX($C:$C,MAX(_xlfn.XLOOKUP("BLACK",$C$7:C175,$A$7:A175,"",0,-1),_xlfn.XLOOKUP("RED",$C$7:C175,$A$7:A175,"",0,-1)),1),C175) -> RED | E175: =IF(AND(COUNTIF($D$7:D175,"RED")>0,COUNTIF($D$7:D175,"BLACK")>0),A175-MIN(_xlfn.XLOOKUP("BLACK",$D$7:D175,$A$7:A175,"",0,-1),_xlfn.XLOOKUP("RED",$D$7:D175,$A$7:A175,"",0,-1)),A175-6) -> 2 | F175: BET | G175: BLACK | H175: FAIL | I175: 5 | J175: 0 | K175: 280 | L175: STOP | M175: 100
A176: =ROW() -> 176 | B176: 19 | C176: =_xlfn.XLOOKUP(B176,AUX!$A:$A,AUX!$B:$B,"",0,1) -> RED | D176: =IF(C176=0,INDEX($C:$C,MAX(_xlfn.XLOOKUP("BLACK",$C$7:C176,$A$7:A176,"",0,-1),_xlfn.XLOOKUP("RED",$C$7:C176,$A$7:A176,"",0,-1)),1),C176) -> RED | E176: =IF(AND(COUNTIF($D$7:D176,"RED")>0,COUNTIF($D$7:D176,"BLACK")>0),A176-MIN(_xlfn.XLOOKUP("BLACK",$D$7:D176,$A$7:A176,"",0,-1),_xlfn.XLOOKUP("RED",$D$7:D176,$A$7:A176,"",0,-1)),A176-6) -> 3 | K176: 280 | L176: STOP | M176: 150
A177: =ROW() -> 177 | B177: 33 | C177: =_xlfn.XLOOKUP(B177,AUX!$A:$A,AUX!$B:$B,"",0,1) -> RED | D177: =IF(C177=0,INDEX($C:$C,MAX(_xlfn.XLOOKUP("BLACK",$C$7:C177,$A$7:A177,"",0,-1),_xlfn.XLOOKUP("RED",$C$7:C177,$A$7:A177,"",0,-1)),1),C177) -> RED | E177: =IF(AND(COUNTIF($D$7:D177,"RED")>0,COUNTIF($D$7:D177,"BLACK")>0),A177-MIN(_xlfn.XLOOKUP("BLACK",$D$7:D177,$A$7:A177,"",0,-1),_xlfn.XLOOKUP("RED",$D$7:D177,$A$7:A177,"",0,-1)),A177-6) -> 4 | K177: 280 | L177: STOP | M177: 200 | N177: 4
A178: =ROW() -> 178 | B178: 16 | C178: =_xlfn.XLOOKUP(B178,AUX!$A:$A,AUX!$B:$B,"",0,1) -> BLACK | D178: =IF(C178=0,INDEX($C:$C,MAX(_xlfn.XLOOKUP("BLACK",$C$7:C178,$A$7:A178,"",0,-1),_xlfn.XLOOKUP("RED",$C$7:C178,$A$7:A178,"",0,-1)),1),C178) -> BLACK | E178: =IF(AND(COUNTIF($D$7:D178,"RED")>0,COUNTIF($D$7:D178,"BLACK")>0),A178-MIN(_xlfn.XLOOKUP("BLACK",$D$7:D178,$A$7:A178,"",0,-1),_xlfn.XLOOKUP("RED",$D$7:D178,$A$7:A178,"",0,-1)),A178-6) -> 1 | K178: 280 | M178: 50 | N178: 1
A179: =ROW() -> 179 | B179: 11 | C179: =_xlfn.XLOOKUP(B179,AUX!$A:$A,AUX!$B:$B,"",0,1) -> RED | D179: =IF(C179=0,INDEX($C:$C,MAX(_xlfn.XLOOKUP("BLACK",$C$7:C179,$A$7:A179,"",0,-1),_xlfn.XLOOKUP("RED",$C$7:C179,$A$7:A179,"",0,-1)),1),C179) -> RED | E179: =IF(AND(COUNTIF($D$7:D179,"RED")>0,COUNTIF($D$7:D179,"BLACK")>0),A179-MIN(_xlfn.XLOOKUP("BLACK",$D$7:D179,$A$7:A179,"",0,-1),_xlfn.XLOOKUP("RED",$D$7:D179,$A$7:A179,"",0,-1)),A179-6) -> 1 | F179: BET | G179: RED | H179: SUCCESS | I179: 5 | J179: 10 | K179: 285 | M179: 50 | N179: 1
A180: =ROW() -> 180 | B180: 20 | C180: =_xlfn.XLOOKUP(B180,AUX!$A:$A,AUX!$B:$B,"",0,1) -> BLACK | D180: =IF(C180=0,INDEX($C:$C,MAX(_xlfn.XLOOKUP("BLACK",$C$7:C180,$A$7:A180,"",0,-1),_xlfn.XLOOKUP("RED",$C$7:C180,$A$7:A180,"",0,-1)),1),C180) -> BLACK | E180: =IF(AND(COUNTIF($D$7:D180,"RED")>0,COUNTIF($D$7:D180,"BLACK")>0),A180-MIN(_xlfn.XLOOKUP("BLACK",$D$7:D180,$A$7:A180,"",0,-1),_xlfn.XLOOKUP("RED",$D$7:D180,$A$7:A180,"",0,-1)),A180-6) -> 1 | F180: BET | G180: BLACK | H180: SUCCESS | I180: 5 | J180: 10 | K180: 290 | M180: 50
A181: =ROW() -> 181 | B181: 24 | C181: =_xlfn.XLOOKUP(B181,AUX!$A:$A,AUX!$B:$B,"",0,1) -> BLACK | D181: =IF(C181=0,INDEX($C:$C,MAX(_xlfn.XLOOKUP("BLACK",$C$7:C181,$A$7:A181,"",0,-1),_xlfn.XLOOKUP("RED",$C$7:C181,$A$7:A181,"",0,-1)),1),C181) -> BLACK | E181: =IF(AND(COUNTIF($D$7:D181,"RED")>0,COUNTIF($D$7:D181,"BLACK")>0),A181-MIN(_xlfn.XLOOKUP("BLACK",$D$7:D181,$A$7:A181,"",0,-1),_xlfn.XLOOKUP("RED",$D$7:D181,$A$7:A181,"",0,-1)),A181-6) -> 2 | F181: BET | G181: RED | H181: FAIL | I181: 5 | J181: 0 | K181: 285 | L181: STOP | M181: 100
A182: =ROW() -> 182 | B182: 12 | C182: =_xlfn.XLOOKUP(B182,AUX!$A:$A,AUX!$B:$B,"",0,1) -> BLACK | D182: =IF(C182=0,INDEX($C:$C,MAX(_xlfn.XLOOKUP("BLACK",$C$7:C182,$A$7:A182,"",0,-1),_xlfn.XLOOKUP("RED",$C$7:C182,$A$7:A182,"",0,-1)),1),C182) -> BLACK | E182: =IF(AND(COUNTIF($D$7:D182,"RED")>0,COUNTIF($D$7:D182,"BLACK")>0),A182-MIN(_xlfn.XLOOKUP("BLACK",$D$7:D182,$A$7:A182,"",0,-1),_xlfn.XLOOKUP("RED",$D$7:D182,$A$7:A182,"",0,-1)),A182-6) -> 3 | K182: 285 | L182: STOP | M182: 150 | N182: 3
A183: =ROW() -> 183 | B183: 31 | C183: =_xlfn.XLOOKUP(B183,AUX!$A:$A,AUX!$B:$B,"",0,1) -> RED | D183: =IF(C183=0,INDEX($C:$C,MAX(_xlfn.XLOOKUP("BLACK",$C$7:C183,$A$7:A183,"",0,-1),_xlfn.XLOOKUP("RED",$C$7:C183,$A$7:A183,"",0,-1)),1),C183) -> RED | E183: =IF(AND(COUNTIF($D$7:D183,"RED")>0,COUNTIF($D$7:D183,"BLACK")>0),A183-MIN(_xlfn.XLOOKUP("BLACK",$D$7:D183,$A$7:A183,"",0,-1),_xlfn.XLOOKUP("RED",$D$7:D183,$A$7:A183,"",0,-1)),A183-6) -> 1 | K183: 285 | M183: 50 | N183: 1
A184: =ROW() -> 184 | B184: 20 | C184: =_xlfn.XLOOKUP(B184,AUX!$A:$A,AUX!$B:$B,"",0,1) -> BLACK | D184: =IF(C184=0,INDEX($C:$C,MAX(_xlfn.XLOOKUP("BLACK",$C$7:C184,$A$7:A184,"",0,-1),_xlfn.XLOOKUP("RED",$C$7:C184,$A$7:A184,"",0,-1)),1),C184) -> BLACK | E184: =IF(AND(COUNTIF($D$7:D184,"RED")>0,COUNTIF($D$7:D184,"BLACK")>0),A184-MIN(_xlfn.XLOOKUP("BLACK",$D$7:D184,$A$7:A184,"",0,-1),_xlfn.XLOOKUP("RED",$D$7:D184,$A$7:A184,"",0,-1)),A184-6) -> 1 | F184: BET | G184: BLACK | H184: SUCCESS | I184: 5 | J184: 10 | K184: 290 | M184: 50 | N184: 1
A185: =ROW() -> 185 | B185: 27 | C185: =_xlfn.XLOOKUP(B185,AUX!$A:$A,AUX!$B:$B,"",0,1) -> RED | D185: =IF(C185=0,INDEX($C:$C,MAX(_xlfn.XLOOKUP("BLACK",$C$7:C185,$A$7:A185,"",0,-1),_xlfn.XLOOKUP("RED",$C$7:C185,$A$7:A185,"",0,-1)),1),C185) -> RED | E185: =IF(AND(COUNTIF($D$7:D185,"RED")>0,COUNTIF($D$7:D185,"BLACK")>0),A185-MIN(_xlfn.XLOOKUP("BLACK",$D$7:D185,$A$7:A185,"",0,-1),_xlfn.XLOOKUP("RED",$D$7:D185,$A$7:A185,"",0,-1)),A185-6) -> 1 | F185: BET | G185: RED | H185: SUCCESS | I185: 5 | J185: 10 | K185: 295 | M185: 50
A186: =ROW() -> 186 | B186: 11 | C186: =_xlfn.XLOOKUP(B186,AUX!$A:$A,AUX!$B:$B,"",0,1) -> RED | D186: =IF(C186=0,INDEX($C:$C,MAX(_xlfn.XLOOKUP("BLACK",$C$7:C186,$A$7:A186,"",0,-1),_xlfn.XLOOKUP("RED",$C$7:C186,$A$7:A186,"",0,-1)),1),C186) -> RED | E186: =IF(AND(COUNTIF($D$7:D186,"RED")>0,COUNTIF($D$7:D186,"BLACK")>0),A186-MIN(_xlfn.XLOOKUP("BLACK",$D$7:D186,$A$7:A186,"",0,-1),_xlfn.XLOOKUP("RED",$D$7:D186,$A$7:A186,"",0,-1)),A186-6) -> 2 | F186: BET | G186: BLACK | H186: FAIL | I186: 5 | J186: 0 | K186: 290 | L186: STOP | M186: 100
A187: =ROW() -> 187 | B187: 23 | C187: =_xlfn.XLOOKUP(B187,AUX!$A:$A,AUX!$B:$B,"",0,1) -> RED | D187: =IF(C187=0,INDEX($C:$C,MAX(_xlfn.XLOOKUP("BLACK",$C$7:C187,$A$7:A187,"",0,-1),_xlfn.XLOOKUP("RED",$C$7:C187,$A$7:A187,"",0,-1)),1),C187) -> RED | E187: =IF(AND(COUNTIF($D$7:D187,"RED")>0,COUNTIF($D$7:D187,"BLACK")>0),A187-MIN(_xlfn.XLOOKUP("BLACK",$D$7:D187,$A$7:A187,"",0,-1),_xlfn.XLOOKUP("RED",$D$7:D187,$A$7:A187,"",0,-1)),A187-6) -> 3 | K187: 290 | L187: STOP | M187: 150 | N187: 3
A188: =ROW() -> 188 | B188: 26 | C188: =_xlfn.XLOOKUP(B188,AUX!$A:$A,AUX!$B:$B,"",0,1) -> BLACK | D188: =IF(C188=0,INDEX($C:$C,MAX(_xlfn.XLOOKUP("BLACK",$C$7:C188,$A$7:A188,"",0,-1),_xlfn.XLOOKUP("RED",$C$7:C188,$A$7:A188,"",0,-1)),1),C188) -> BLACK | E188: =IF(AND(COUNTIF($D$7:D188,"RED")>0,COUNTIF($D$7:D188,"BLACK")>0),A188-MIN(_xlfn.XLOOKUP("BLACK",$D$7:D188,$A$7:A188,"",0,-1),_xlfn.XLOOKUP("RED",$D$7:D188,$A$7:A188,"",0,-1)),A188-6) -> 1 | K188: 290 | M188: 50
A189: =ROW() -> 189 | B189: 26 | C189: =_xlfn.XLOOKUP(B189,AUX!$A:$A,AUX!$B:$B,"",0,1) -> BLACK | D189: =IF(C189=0,INDEX($C:$C,MAX(_xlfn.XLOOKUP("BLACK",$C$7:C189,$A$7:A189,"",0,-1),_xlfn.XLOOKUP("RED",$C$7:C189,$A$7:A189,"",0,-1)),1),C189) -> BLACK | E189: =IF(AND(COUNTIF($D$7:D189,"RED")>0,COUNTIF($D$7:D189,"BLACK")>0),A189-MIN(_xlfn.XLOOKUP("BLACK",$D$7:D189,$A$7:A189,"",0,-1),_xlfn.XLOOKUP("RED",$D$7:D189,$A$7:A189,"",0,-1)),A189-6) -> 2 | F189: BET | G189: RED | H189: FAIL | I189: 5 | J189: 0 | K189: 285 | L189: STOP | M189: 100 | N189: 2
A190: =ROW() -> 190 | B190: 7 | C190: =_xlfn.XLOOKUP(B190,AUX!$A:$A,AUX!$B:$B,"",0,1) -> RED | D190: =IF(C190=0,INDEX($C:$C,MAX(_xlfn.XLOOKUP("BLACK",$C$7:C190,$A$7:A190,"",0,-1),_xlfn.XLOOKUP("RED",$C$7:C190,$A$7:A190,"",0,-1)),1),C190) -> RED | E190: =IF(AND(COUNTIF($D$7:D190,"RED")>0,COUNTIF($D$7:D190,"BLACK")>0),A190-MIN(_xlfn.XLOOKUP("BLACK",$D$7:D190,$A$7:A190,"",0,-1),_xlfn.XLOOKUP("RED",$D$7:D190,$A$7:A190,"",0,-1)),A190-6) -> 1 | K190: 285 | M190: 50 | N190: 1
A191: =ROW() -> 191 | B191: 4 | C191: =_xlfn.XLOOKUP(B191,AUX!$A:$A,AUX!$B:$B,"",0,1) -> BLACK | D191: =IF(C191=0,INDEX($C:$C,MAX(_xlfn.XLOOKUP("BLACK",$C$7:C191,$A$7:A191,"",0,-1),_xlfn.XLOOKUP("RED",$C$7:C191,$A$7:A191,"",0,-1)),1),C191) -> BLACK | E191: =IF(AND(COUNTIF($D$7:D191,"RED")>0,COUNTIF($D$7:D191,"BLACK")>0),A191-MIN(_xlfn.XLOOKUP("BLACK",$D$7:D191,$A$7:A191,"",0,-1),_xlfn.XLOOKUP("RED",$D$7:D191,$A$7:A191,"",0,-1)),A191-6) -> 1 | F191: BET | G191: BLACK | H191: SUCCESS | I191: 5 | J191: 10 | K191: 290 | M191: 50 | N191: 1
A192: =ROW() -> 192 | B192: 19 | C192: =_xlfn.XLOOKUP(B192,AUX!$A:$A,AUX!$B:$B,"",0,1) -> RED | D192: =IF(C192=0,INDEX($C:$C,MAX(_xlfn.XLOOKUP("BLACK",$C$7:C192,$A$7:A192,"",0,-1),_xlfn.XLOOKUP("RED",$C$7:C192,$A$7:A192,"",0,-1)),1),C192) -> RED | E192: =IF(AND(COUNTIF($D$7:D192,"RED")>0,COUNTIF($D$7:D192,"BLACK")>0),A192-MIN(_xlfn.XLOOKUP("BLACK",$D$7:D192,$A$7:A192,"",0,-1),_xlfn.XLOOKUP("RED",$D$7:D192,$A$7:A192,"",0,-1)),A192-6) -> 1 | F192: BET | G192: RED | H192: SUCCESS | I192: 5 | J192: 10 | K192: 295 | M192: 50 | N192: 1
A193: =ROW() -> 193 | B193: 6 | C193: =_xlfn.XLOOKUP(B193,AUX!$A:$A,AUX!$B:$B,"",0,1) -> BLACK | D193: =IF(C193=0,INDEX($C:$C,MAX(_xlfn.XLOOKUP("BLACK",$C$7:C193,$A$7:A193,"",0,-1),_xlfn.XLOOKUP("RED",$C$7:C193,$A$7:A193,"",0,-1)),1),C193) -> BLACK | E193: =IF(AND(COUNTIF($D$7:D193,"RED")>0,COUNTIF($D$7:D193,"BLACK")>0),A193-MIN(_xlfn.XLOOKUP("BLACK",$D$7:D193,$A$7:A193,"",0,-1),_xlfn.XLOOKUP("RED",$D$7:D193,$A$7:A193,"",0,-1)),A193-6) -> 1 | F193: BET | G193: BLACK | H193: SUCCESS | I193: 5 | J193: 10 | K193: 300 | M193: 50
A194: =ROW() -> 194 | B194: 2 | C194: =_xlfn.XLOOKUP(B194,AUX!$A:$A,AUX!$B:$B,"",0,1) -> BLACK | D194: =IF(C194=0,INDEX($C:$C,MAX(_xlfn.XLOOKUP("BLACK",$C$7:C194,$A$7:A194,"",0,-1),_xlfn.XLOOKUP("RED",$C$7:C194,$A$7:A194,"",0,-1)),1),C194) -> BLACK | E194: =IF(AND(COUNTIF($D$7:D194,"RED")>0,COUNTIF($D$7:D194,"BLACK")>0),A194-MIN(_xlfn.XLOOKUP("BLACK",$D$7:D194,$A$7:A194,"",0,-1),_xlfn.XLOOKUP("RED",$D$7:D194,$A$7:A194,"",0,-1)),A194-6) -> 2 | F194: BET | G194: RED | H194: FAIL | I194: 5 | J194: 0 | K194: 295 | L194: STOP | M194: 100 | N194: 2
A195: =ROW() -> 195 | B195: 31 | C195: =_xlfn.XLOOKUP(B195,AUX!$A:$A,AUX!$B:$B,"",0,1) -> RED | D195: =IF(C195=0,INDEX($C:$C,MAX(_xlfn.XLOOKUP("BLACK",$C$7:C195,$A$7:A195,"",0,-1),_xlfn.XLOOKUP("RED",$C$7:C195,$A$7:A195,"",0,-1)),1),C195) -> RED | E195: =IF(AND(COUNTIF($D$7:D195,"RED")>0,COUNTIF($D$7:D195,"BLACK")>0),A195-MIN(_xlfn.XLOOKUP("BLACK",$D$7:D195,$A$7:A195,"",0,-1),_xlfn.XLOOKUP("RED",$D$7:D195,$A$7:A195,"",0,-1)),A195-6) -> 1 | K195: 295 | M195: 50
A196: =ROW() -> 196 | B196: 13 | C196: =_xlfn.XLOOKUP(B196,AUX!$A:$A,AUX!$B:$B,"",0,1) -> RED | D196: =IF(C196=0,INDEX($C:$C,MAX(_xlfn.XLOOKUP("BLACK",$C$7:C196,$A$7:A196,"",0,-1),_xlfn.XLOOKUP("RED",$C$7:C196,$A$7:A196,"",0,-1)),1),C196) -> RED | E196: =IF(AND(COUNTIF($D$7:D196,"RED")>0,COUNTIF($D$7:D196,"BLACK")>0),A196-MIN(_xlfn.XLOOKUP("BLACK",$D$7:D196,$A$7:A196,"",0,-1),_xlfn.XLOOKUP("RED",$D$7:D196,$A$7:A196,"",0,-1)),A196-6) -> 2 | F196: BET | G196: BLACK | H196: FAIL | I196: 5 | J196: 0 | K196: 290 | L196: STOP | M196: 100 | N196: 2
A197: =ROW() -> 197 | B197: 4 | C197: =_xlfn.XLOOKUP(B197,AUX!$A:$A,AUX!$B:$B,"",0,1) -> BLACK | D197: =IF(C197=0,INDEX($C:$C,MAX(_xlfn.XLOOKUP("BLACK",$C$7:C197,$A$7:A197,"",0,-1),_xlfn.XLOOKUP("RED",$C$7:C197,$A$7:A197,"",0,-1)),1),C197) -> BLACK | E197: =IF(AND(COUNTIF($D$7:D197,"RED")>0,COUNTIF($D$7:D197,"BLACK")>0),A197-MIN(_xlfn.XLOOKUP("BLACK",$D$7:D197,$A$7:A197,"",0,-1),_xlfn.XLOOKUP("RED",$D$7:D197,$A$7:A197,"",0,-1)),A197-6) -> 1 | K197: 290 | M197: 50
A198: =ROW() -> 198 | B198: 26 | C198: =_xlfn.XLOOKUP(B198,AUX!$A:$A,AUX!$B:$B,"",0,1) -> BLACK | D198: =IF(C198=0,INDEX($C:$C,MAX(_xlfn.XLOOKUP("BLACK",$C$7:C198,$A$7:A198,"",0,-1),_xlfn.XLOOKUP("RED",$C$7:C198,$A$7:A198,"",0,-1)),1),C198) -> BLACK | E198: =IF(AND(COUNTIF($D$7:D198,"RED")>0,COUNTIF($D$7:D198,"BLACK")>0),A198-MIN(_xlfn.XLOOKUP("BLACK",$D$7:D198,$A$7:A198,"",0,-1),_xlfn.XLOOKUP("RED",$D$7:D198,$A$7:A198,"",0,-1)),A198-6) -> 2 | F198: BET | G198: RED | H198: FAIL | I198: 5 | J198: 0 | K198: 285 | L198: STOP | M198: 100 | N198: 2
A199: =ROW() -> 199 | B199: 33 | C199: =_xlfn.XLOOKUP(B199,AUX!$A:$A,AUX!$B:$B,"",0,1) -> RED | D199: =IF(C199=0,INDEX($C:$C,MAX(_xlfn.XLOOKUP("BLACK",$C$7:C199,$A$7:A199,"",0,-1),_xlfn.XLOOKUP("RED",$C$7:C199,$A$7:A199,"",0,-1)),1),C199) -> RED | E199: =IF(AND(COUNTIF($D$7:D199,"RED")>0,COUNTIF($D$7:D199,"BLACK")>0),A199-MIN(_xlfn.XLOOKUP("BLACK",$D$7:D199,$A$7:A199,"",0,-1),_xlfn.XLOOKUP("RED",$D$7:D199,$A$7:A199,"",0,-1)),A199-6) -> 1 | K199: 285 | M199: 50
A200: =ROW() -> 200 | B200: =RANDBETWEEN(0,36) -> 27 | C200: =_xlfn.XLOOKUP(B200,AUX!$A:$A,AUX!$B:$B,"",0,1) -> RED | D200: =IF(C200=0,INDEX($C:$C,MAX(_xlfn.XLOOKUP("BLACK",$C$7:C200,$A$7:A200,"",0,-1),_xlfn.XLOOKUP("RED",$C$7:C200,$A$7:A200,"",0,-1)),1),C200) -> RED | E200: =IF(AND(COUNTIF($D$7:D200,"RED")>0,COUNTIF($D$7:D200,"BLACK")>0),A200-MIN(_xlfn.XLOOKUP("BLACK",$D$7:D200,$A$7:A200,"",0,-1),_xlfn.XLOOKUP("RED",$D$7:D200,$A$7:A200,"",0,-1)),A200-6) -> 2 | F200: BET | G200: BLACK | H200: FAIL | I200: 5 | J200: 0 | K200: 280 | L200: =IF(OR(AND(H200="FAIL",I200=$G$4),AND(L199="STOP",E200>$E$3)),"STOP","") -> STOP | M200: 100 | N200: =IF(E201<=E200,E200,"") -> 
... 100 more rows

Sheet RESULTS B
B1: 50 | F1: =SUM(F2:F1048576) -> -230
A2: BET AFTER | B2: BET | C2: STOP LOSS € | D2: STOP PROFIT € | E2: MAX ITER | F2: € WIN | G2: BALANCE | J2: MAX ITER | K2: TIMES
G3: 300 | J3: 0 | K3: =COUNTIF(E:E,J3) -> 0
A4: 2 | B4: 5 | C4: 20 | D4: 50 | E4: 8 | F4: -25 | G4: =G3+F4 -> 275 | J4: 1 | K4: =COUNTIF(E:E,J4) -> 0
A5: 2 | B5: 5 | C5: 20 | D5: 50 | E5: 10 | F5: 0 | G5: 275 | J5: 2 | K5: 0
A6: 2 | B6: 5 | C6: 20 | D6: 50 | E6: 10 | F6: 50 | G6: 325 | J6: 3 | K6: 0
A7: 2 | B7: 5 | C7: 20 | D7: 50 | E7: 7 | F7: -20 | G7: 305 | J7: 4 | K7: 0
A8: 2 | B8: 5 | C8: 20 | D8: 50 | E8: 10 | F8: 5 | G8: 310 | J8: 5 | K8: 0
A9: 2 | B9: 5 | C9: 20 | D9: 50 | E9: 12 | F9: -35 | G9: 275 | J9: 6 | K9: 2
A10: 2 | B10: 5 | C10: 20 | D10: 50 | E10: 7 | F10: -20 | G10: 255 | J10: 7 | K10: 11
A11: 2 | B11: 5 | C11: 20 | D11: 50 | E11: 12 | F11: 50 | G11: 305 | J11: 8 | K11: 11
A12: 2 | B12: 5 | C12: 20 | D12: 50 | E12: 8 | F12: -30 | G12: 275 | J12: 9 | K12: 6
A13: 2 | B13: 5 | C13: 20 | D13: 50 | E13: 7 | F13: -35 | G13: 240 | J13: 10 | K13: 10
A14: 2 | B14: 5 | C14: 20 | D14: 50 | E14: 6 | F14: -10 | G14: 230 | J14: 11 | K14: 6
A15: 2 | B15: 5 | C15: 20 | D15: 50 | E15: 7 | F15: 10 | G15: 240 | J15: 12 | K15: 2
A16: 2 | B16: 5 | C16: 20 | D16: 50 | E16: 11 | F16: 50 | G16: 290 | J16: 13 | K16: 2
A17: 2 | B17: 5 | C17: 20 | D17: 50 | E17: 8 | F17: 0 | G17: 290 | J17: 14 | K17: 0
A18: 2 | B18: 5 | C18: 20 | D18: 50 | E18: 10 | F18: -35 | G18: 255 | J18: 15 | K18: 0 | N18: TIMES BETWEEN 6 AND 10 | O18: =SUM(K9:K13) -> 40
A19: 2 | B19: 5 | C19: 20 | D19: 50 | E19: 7 | F19: 5 | G19: 260 | J19: 16 | K19: 0 | N19: TIMES > 10 | O19: =SUM(K14:K23) -> 10
A20: 2 | B20: 5 | C20: 20 | D20: 50 | E20: 7 | F20: -35 | G20: 225 | J20: 17 | K20: 0
A21: 2 | B21: 5 | C21: 20 | D21: 50 | E21: 9 | F21: -5 | G21: 220 | J21: 18 | K21: 0
A22: 2 | B22: 5 | C22: 20 | D22: 50 | E22: 6 | F22: -25 | G22: 195 | J22: 19 | K22: 0
A23: 2 | B23: 5 | C23: 20 | D23: 50 | E23: 9 | F23: 0 | G23: 195 | J23: 20 | K23: 0 | N23: % WINNING PER MONTH VS RISK | O23: =F1/'RESULTS B'!D4 -> -4.6
A24: 2 | B24: 5 | C24: 20 | D24: 50 | E24: 10 | F24: -10 | G24: 185
A25: 2 | B25: 5 | C25: 20 | D25: 50 | E25: 10 | F25: -35 | G25: 150
A26: 2 | B26: 5 | C26: 20 | D26: 50 | E26: 10 | F26: -30 | G26: 120
A27: 2 | B27: 5 | C27: 20 | D27: 50 | E27: 8 | F27: -15 | G27: 105
A28: 2 | B28: 5 | C28: 20 | D28: 50 | E28: 10 | F28: -35 | G28: 70
A29: 2 | B29: 5 | C29: 20 | D29: 50 | E29: 9 | F29: -25 | G29: 45
A30: 2 | B30: 5 | C30: 20 | D30: 50 | E30: 9 | F30: -5 | G30: 40
A31: 2 | B31: 5 | C31: 20 | D31: 50 | E31: 11 | F31: -25 | G31: 15
A32: 2 | B32: 5 | C32: 20 | D32: 50 | E32: 7 | F32: -20 | G32: -5
A33: 2 | B33: 5 | C33: 20 | D33: 50 | E33: 10 | F33: 5 | G33: 0
A34: 2 | B34: 5 | C34: 20 | D34: 50 | E34: 7 | F34: 50 | G34: 50
A35: 2 | B35: 5 | C35: 20 | D35: 50 | E35: 11 | F35: -10 | G35: 40
A36: 2 | B36: 5 | C36: 20 | D36: 50 | E36: 7 | F36: 0 | G36: 40
A37: 2 | B37: 5 | C37: 20 | D37: 50 | E37: 8 | F37: 50 | G37: 90
A38: 2 | B38: 5 | C38: 20 | D38: 50 | E38: 13 | F38: 50 | G38: 140
A39: 2 | B39: 5 | C39: 20 | D39: 50 | E39: 8 | F39: -10 | G39: 130
A40: 2 | B40: 5 | C40: 20 | D40: 50 | E40: 11 | F40: 0 | G40: 130
A41: 2 | B41: 5 | C41: 20 | D41: 50 | E41: 8 | F41: -30 | G41: 100
A42: 2 | B42: 5 | C42: 20 | D42: 50 | E42: 7 | F42: -5 | G42: 95
A43: 2 | B43: 5 | C43: 20 | D43: 50 | E43: 9 | F43: -15 | G43: 80
A44: 2 | B44: 5 | C44: 20 | D44: 50 | E44: 11 | F44: 50 | G44: 130
A45: 2 | B45: 5 | C45: 20 | D45: 50 | E45: 8 | F45: 5 | G45: 135
A46: 2 | B46: 5 | C46: 20 | D46: 50 | E46: 8 | F46: 50 | G46: 185
A47: 2 | B47: 5 | C47: 20 | D47: 50 | E47: 10 | F47: -35 | G47: 150
A48: 2 | B48: 5 | C48: 20 | D48: 50 | E48: 9 | F48: -10 | G48: 140
A49: 2 | B49: 5 | C49: 20 | D49: 50 | E49: 7 | F49: -15 | G49: 125
A50: 2 | B50: 5 | C50: 20 | D50: 50 | E50: 13 | F50: -30 | G50: 95
A51: 2 | B51: 5 | C51: 20 | D51: 50 | E51: 8 | F51: 5 | G51: 100
A52: 2 | B52: 5 | C52: 20 | D52: 50 | E52: 8 | F52: -30 | G52: 70
A53: 2 | B53: 5 | C53: 20 | D53: 50 | E53: 11 | F53: 0 | G53: 70
